Workbook

Sheet OVERALL STATS
A1: OVERALL TITLE COMPANY MARKET STATISTICS (Washoe County, NV)
A2: Reporting Period: MAY, 2020
A5: OVERALL SALES MARKET (Resales & Subdivision Sales)
A6: TITLE COMPANY | B6: CLOSINGS | C6: DOLLAR VOLUME | D6: CLOSINGS | E6: DOLLAR VOLUME | F6: CLOSINGS | G6: DOLLAR VOLUME
A7: First Centennial Title | B7: 238 | C7: 109878304.1 | D7: =B7/$B$19 -> 0.3356840621 | E7: =C7/$C$19 -> 0.3031800423 | F7: 1 | G7: 1
A8: Western Title | B8: 134 | C8: 54375802 | D8: 0.1889985896 | E8: 0.150035606 | F8: 2 | G8: 3
A9: Ticor Title | B9: 124 | C9: 88339433.13 | D9: =B9/$B$19 -> 0.1748942172 | E9: =C9/$C$19 -> 0.2437492395 | F9: 3 | G9: 2
A10: First American Title | B10: 52 | C10: 36939046.67 | D10: 0.07334273625 | E10: 0.1019235036 | F10: 4 | G10: 4
A11: Calatlantic Title West | B11: 33 | C11: 15410460 | D11: 0.04654442877 | E11: 0.04252107776 | F11: 5 | G11: 6
A12: Stewart Title | B12: 32 | C12: 11500418 | D12: 0.04513399154 | E12: 0.03173235374 | F12: 6 | G12: 8
A13: North American Title | B13: 28 | C13: 12139950 | D13: 0.0394922426 | E13: 0.0334969727 | F13: 7 | G13: 7
A14: Westminster Title - Las Vegas | B14: 21 | C14: 15880274 | D14: 0.02961918195 | E14: 0.04381740491 | F14: 8 | G14: 5
A15: DHI Title of Nevada | B15: 17 | C15: 7250200 | D15: 0.023977433 | E15: 0.02000500426 | F15: 9 | G15: 9
A16: Toiyabe Title | B16: 11 | C16: 3608900 | D16: =B16/$B$19 -> 0.01551480959 | E16: =C16/$C$19 -> 0.009957802527 | F16: 10 | G16: 11
A17: Signature Title Company | B17: 10 | C17: 3201530 | D17: 0.01410437236 | E17: 0.00883377304 | F17: 11 | G17: 12
A18: Acme Title and Escrow | B18: 9 | C18: 3895000 | D18: =B18/$B$19 -> 0.01269393512 | E18: =C18/$C$19 -> 0.01074721961 | F18: 12 | G18: 10
A19: GRAND TOTAL | B19: =SUM(B7:B18) -> 709 | C19: =SUM(C7:C18) -> 362419317.9 | D19: =SUM(D7:D18) -> 1 | E19: =SUM(E7:E18) -> 1
A21: OVERALL LOAN ONLY MARKET (Refi's, Construction, Commercial, Credit Lines, Homequity, etc.)
D22: % OF | E22: % OF | F22: RANK BY | G22: RANK BY
A23: TITLECOMPANY | B23: CLOSINGS | C23: DOLLAR VOLUME | D23: CLOSINGS | E23: DOLLAR VOLUME | F23: CLOSINGS | G23: DOLLAR VOLUME
A24: First Centennial Title | B24: 302 | C24: 128936524 | D24: =B24/$B$34 -> 0.2684444444 | E24: =C24/$C$34 -> 0.3178064697 | F24: 1 | G24: 1
A25: Western Title | B25: 217 | C25: 87615372.97 | D25: 0.1928888889 | E25: 0.2159569027 | F25: 2 | G25: 2
A26: First American Title | B26: 185 | C26: 65935863.12 | D26: 0.1644444444 | E26: 0.1625206205 | F26: 3 | G26: 3
A27: Ticor Title | B27: 176 | C27: 54795523.19 | D27: 0.1564444444 | E27: 0.1350615887 | F27: 4 | G27: 4
A28: Stewart Title | B28: 113 | C28: 31364029 | D28: 0.1004444444 | E28: 0.07730696487 | F28: 5 | G28: 5
A29: North American Title | B29: 42 | C29: 11999837 | D29: 0.03733333333 | E29: 0.02957754494 | F29: 6 | G29: 6
A30: Acme Title and Escrow | B30: 42 | C30: 11397283 | D30: =B30/$B$34 -> 0.03733333333 | E30: =C30/$C$34 -> 0.02809235244 | F30: 6 | G30: 7
A31: Toiyabe Title | B31: 32 | C31: 8912223 | D31: =B31/$B$34 -> 0.02844444444 | E31: =C31/$C$34 -> 0.02196710475 | F31: 7 | G31: 8
A32: Signature Title Company | B32: 13 | C32: 4047600 | D32: =B32/$B$34 -> 0.01155555556 | E32: =C32/$C$34 -> 0.009976641426 | F32: 8 | G32: 9
A33: Driggs Title Agency | B33: 3 | C33: 703420 | D33: =B33/$B$34 -> 0.002666666667 | E33: =C33/$C$34 -> 0.00173380994 | F33: 9 | G33: 10
A34: GRAND TOTAL | B34: =SUM(B24:B33) -> 1125 | C34: =SUM(C24:C33) -> 405707675.3 | D34: =SUM(D24:D33) -> 1 | E34: =SUM(E24:E33) -> 1
A36: OVERALL SALES AND LOAN ONLY MARKETS COMBINED
D37: % OF | E37: % OF | F37: RANK BY | G37: RANK BY
A38: TITLECOMPANY | B38: CLOSINGS | C38: DOLLAR VOLUME | D38: CLOSINGS | E38: DOLLAR VOLUME | F38: CLOSINGS | G38: DOLLAR VOLUME
A39: First Centennial Title | B39: 540 | C39: 238814828.1 | D39: =B39/$B$52 -> 0.294438386 | E39: =C39/$C$52 -> 0.3109053975 | F39: 1 | G39: =RANK(C39,$C$39:$C$51) -> 1
A40: Western Title | B40: 351 | C40: 141991175 | D40: 0.1913849509 | E40: 0.1848537758 | F40: 2 | G40: =RANK(C40,$C$39:$C$51) -> 3
A41: Ticor Title | B41: 300 | C41: 143134956.3 | D41: 0.1635768811 | E41: 0.1863428282 | F41: 3 | G41: 2
A42: First American Title | B42: 237 | C42: 102874909.8 | D42: =B42/$B$52 -> 0.1292257361 | E42: =C42/$C$52 -> 0.1339295594 | F42: 4 | G42: 4
A43: Stewart Title | B43: 145 | C43: 42864447 | D43: 0.07906215921 | E43: 0.05580385454 | F43: 5 | G43: 5
A44: North American Title | B44: 70 | C44: 24139787 | D44: 0.03816793893 | E44: 0.03142681772 | F44: 6 | G44: 6
A45: Acme Title and Escrow | B45: 51 | C45: 15292283 | D45: 0.02780806979 | E45: 0.01990853483 | F45: 7 | G45: 9
A46: Toiyabe Title | B46: 43 | C46: 12521123 | D46: 0.02344601963 | E46: 0.01630085013 | F46: 8 | G46: 10
A47: Calatlantic Title West | B47: 33 | C47: 15410460 | D47: =B47/$B$52 -> 0.01799345692 | E47: =C47/$C$52 -> 0.02006238569 | F47: 9 | G47: 8
A48: Signature Title Company | B48: 23 | C48: 7249130 | D48: =B48/$B$52 -> 0.01254089422 | E48: =C48/$C$52 -> 0.009437410824 | F48: 10 | G48: 12
A49: Westminster Title - Las Vegas | B49: 21 | C49: 15880274 | D49: =B49/$B$52 -> 0.01145038168 | E49: 0.02067402154 | F49: 11 | G49: 7
A50: DHI Title of Nevada | B50: 17 | C50: 7250200 | D50: =B50/$B$52 -> 0.009269356598 | E50: =C50/$C$52 -> 0.009438803823 | F50: 12 | G50: 11
A51: Driggs Title Agency | B51: 3 | C51: 703420 | D51: 0.001635768811 | E51: 0.0009157600322 | F51: 13 | G51: 13
A52: GRAND TOTAL | B52: =SUM(B39:B51) -> 1834 | C52: =SUM(C39:C51) -> 768126993.2 | D52: =SUM(D39:D51) -> 1 | E52: =SUM(E39:E51) -> 1
A54: Information provided by Datasource | D54: SEE CHARTS BELOW:
A55: www.datasourcenev.com

Sheet SALES STATS
A1: SALES MARKET (Washoe County, NV)
A2: ='OVERALL STATS'!A2 -> Reporting Period: MAY, 2020
A4: RESALE MARKET (Includes ALL types of real property)
D5: % OF | E5: % OF | F5: RANK BY | G5: RANK BY
A6: TITLE COMPANY | B6: CLOSINGS | C6: DOLLAR VOLUME | D6: CLOSINGS | E6: DOLLAR VOLUME | F6: CLOSINGS | G6: DOLLAR VOLUME
A7: First Centennial Title | B7: 223 | C7: 98129284.13 | D7: =B7/$B$17 -> 0.3912280702 | E7: =C7/$C$17 -> 0.3443995295 | F7: 1 | G7: 1
A8: Ticor Title | B8: 111 | C8: 80376866.13 | D8: =B8/$B$17 -> 0.1947368421 | E8: =C8/$C$17 -> 0.2820947398 | F8: 2 | G8: 2
A9: Western Title | B9: 100 | C9: 39435246 | D9: =B9/$B$17 -> 0.1754385965 | E9: =C9/$C$17 -> 0.1384039463 | F9: 3 | G9: 3
A10: First American Title | B10: 45 | C10: 32548880 | D10: =B10/$B$17 -> 0.07894736842 | E10: =C10/$C$17 -> 0.1142352057 | F10: 4 | G10: 4
A11: Stewart Title | B11: 32 | C11: 11500418 | D11: 0.05614035088 | E11: 0.04036245228 | F11: 5 | G11: 6
A12: North American Title | B12: 28 | C12: 12139950 | D12: 0.04912280702 | E12: 0.04260698633 | F12: 6 | G12: 5
A13: Toiyabe Title | B13: 11 | C13: 3608900 | D13: 0.01929824561 | E13: 0.0126659791 | F13: 7 | G13: 8
A14: Signature Title Company | B14: 10 | C14: 3201530 | D14: 0.01754385965 | E14: 0.01123625262 | F14: 8 | G14: 9
A15: Acme Title and Escrow | B15: 9 | C15: 3895000 | D15: 0.01578947368 | E15: 0.01367009022 | F15: 9 | G15: 7
A16: Calatlantic Title West | B16: 1 | C16: 92550 | D16: 0.001754385965 | E16: 0.00032481819 | F16: 10 | G16: 10
A17: GRAND TOTAL | B17: =SUM(B7:B16) -> 570 | C17: =SUM(C7:C16) -> 284928624.3 | D17: =SUM(D7:D16) -> 1 | E17: =SUM(E7:E16) -> 1
A19: SUBDIVISION SALES (Builder/Developer Sales)
D20: % OF | E20: % OF | F20: RANK BY | G20: RANK BY
A21: TITLE COMPANY | B21: CLOSINGS | C21: DOLLAR VOLUME | D21: CLOSINGS | E21: DOLLAR VOLUME | F21: CLOSINGS | G21: DOLLAR VOLUME
A22: Western Title | B22: 34 | C22: 14940556 | D22: =B22/$B$29 -> 0.2446043165 | E22: =C22/$C$29 -> 0.19280452 | F22: 1 | G22: =RANK(C22,$C$22:$C$28) -> 3
A23: Calatlantic Title West | B23: 32 | C23: 15317910 | D23: =B23/$B$29 -> 0.2302158273 | E23: =C23/$C$29 -> 0.1976741887 | F23: 2 | G23: =RANK(C23,$C$22:$C$28) -> 2
A24: Westminster Title - Las Vegas | B24: 21 | C24: 15880274 | D24: =B24/$B$29 -> 0.1510791367 | E24: =C24/$C$29 -> 0.2049313698 | F24: 3 | G24: 1
A25: DHI Title of Nevada | B25: 17 | C25: 7250200 | D25: =B25/$B$29 -> 0.1223021583 | E25: =C25/$C$29 -> 0.09356220285 | F25: 4 | G25: 6
A26: First Centennial Title | B26: 15 | C26: 11749020 | D26: =B26/$B$29 -> 0.1079136691 | E26: =C26/$C$29 -> 0.1516184647 | F26: 5 | G26: 4
A27: Ticor Title | B27: 13 | C27: 7962567 | D27: =B27/$B$29 -> 0.09352517986 | E27: =C27/$C$29 -> 0.102755139 | F27: 6 | G27: 5
A28: First American Title | B28: 7 | C28: 4390166.67 | D28: =B28/$B$29 -> 0.05035971223 | E28: =C28/$C$29 -> 0.05665411499 | F28: 7 | G28: 7
A29: GRAND TOTAL | B29: =SUM(B22:B28) -> 139 | C29: =SUM(C22:C28) -> 77490693.67 | D29: =SUM(D22:D28) -> 1 | E29: =SUM(E22:E28) -> 1
A31: RESIDENTIAL RESALE MARKET (Residential Properties Only)
D32: % OF | E32: % OF | F32: RANK BY | G32: RANK BY
A33: TITLE COMPANY | B33: CLOSINGS | C33: DOLLAR VOLUME | D33: CLOSINGS | E33: DOLLAR VOLUME | F33: CLOSINGS | G33: DOLLAR VOLUME
A34: First Centennial Title | B34: 202 | C34: 89209851 | D34: =B34/$B$44 -> 0.3825757576 | E34: =C34/$C$44 -> 0.3589303856 | F34: =RANK(B34,$B$34:$B$43) -> 1 | G34: =RANK(C34,$C$34:$C$43) -> 1
A35: Ticor Title | B35: 105 | C35: 62489477.25 | D35: 0.1988636364 | E35: 0.2514225942 | F35: =RANK(B35,$B$34:$B$43) -> 2 | G35: =RANK(C35,$C$34:$C$43) -> 2
A36: Western Title | B36: 91 | C36: 36022046 | D36: 0.1723484848 | E36: 0.1449325015 | F36: 3 | G36: 3
A37: First American Title | B37: 41 | C37: 26903880 | D37: 0.07765151515 | E37: 0.1082461176 | F37: 4 | G37: 4
A38: Stewart Title | B38: 30 | C38: 10980418 | D38: 0.05681818182 | E38: 0.04417904102 | F38: 5 | G38: 6
A39: North American Title | B39: 28 | C39: 12139950 | D39: 0.05303030303 | E39: 0.04884434719 | F39: 6 | G39: 5
A40: Toiyabe Title | B40: 11 | C40: 3608900 | D40: =B40/$B$44 -> 0.02083333333 | E40: =C40/$C$44 -> 0.01452018868 | F40: 7 | G40: 8
A41: Signature Title Company | B41: 10 | C41: 3201530 | D41: 0.01893939394 | E41: 0.01288116037 | F41: 8 | G41: 9
A42: Acme Title and Escrow | B42: 9 | C42: 3895000 | D42: 0.01704545455 | E42: 0.01567129455 | F42: 9 | G42: 7
A43: Calatlantic Title West | B43: 1 | C43: 92550 | D43: =B43/$B$44 -> 0.001893939394 | E43: =C43/$C$44 -> 0.0003723692711 | F43: 10 | G43: 10
A44: GRAND TOTAL | B44: =SUM(B34:B43) -> 528 | C44: =SUM(C34:C43) -> 248543602.2 | D44: =SUM(D34:D43) -> 1 | E44: =SUM(E34:E43) -> 1
A46: COMMERCIAL/INDUSTRIAL, APARTMENTS, MOBILE HOME PARKS SALES MARKET
D47: % OF | E47: % OF | F47: RANK BY | G47: RANK BY
A48: TITLE COMPANY | B48: CLOSINGS | C48: DOLLAR VOLUME | D48: CLOSINGS | E48: DOLLAR VOLUME | F48: CLOSINGS | G48: DOLLAR VOLUME
A49: First Centennial Title | B49: 8 | C49: 5358489.6 | D49: =B49/$B$52 -> 0.6153846154 | E49: =C49/$C$52 -> 0.1986289959 | F49: 1 | G49: 2
A50: Ticor Title | B50: 3 | C50: 17468888.88 | D50: =B50/$B$52 -> 0.2307692308 | E50: =C50/$C$52 -> 0.6475384142 | F50: 2 | G50: 1
A51: First American Title | B51: 2 | C51: 4150000 | D51: =B51/$B$52 -> 0.1538461538 | E51: =C51/$C$52 -> 0.1538325899 | F51: 3 | G51: 3
A52: GRAND TOTAL | B52: =SUM(B49:B51) -> 13 | C52: =SUM(C49:C51) -> 26977378.48 | D52: =SUM(D49:D51) -> 1 | E52: =SUM(E49:E51) -> 1
A54: VACANT LAND SALES
D55: % OF | E55: % OF | F55: RANK BY | G55: RANK BY
A56: TITLE COMPANY | B56: CLOSINGS | C56: DOLLAR VOLUME | D56: CLOSINGS | E56: DOLLAR VOLUME | F56: CLOSINGS | G56: DOLLAR VOLUME
A57: First Centennial Title | B57: 13 | C57: 3560943.53 | D57: =B57/$B$62 -> 0.4482758621 | E57: =C57/$C$62 -> 0.3785159927 | F57: 1 | G57: 1
A58: Western Title | B58: 9 | C58: 3413200 | D58: =B58/$B$62 -> 0.3103448276 | E58: =C58/$C$62 -> 0.362811366 | F58: 2 | G58: 2
A59: Ticor Title | B59: 3 | C59: 418500 | D59: =B59/$B$62 -> 0.1034482759 | E59: =C59/$C$62 -> 0.04448510391 | F59: 3 | G59: 5
A60: First American Title | B60: 2 | C60: 1495000 | D60: =B60/$B$62 -> 0.06896551724 | E60: =C60/$C$62 -> 0.1589133342 | F60: 4 | G60: 3
A61: Stewart Title | B61: 2 | C61: 520000 | D61: =B61/$B$62 -> 0.06896551724 | E61: =C61/$C$62 -> 0.05527420319 | F61: 4 | G61: 4
A62: GRAND TOTAL | B62: =SUM(B57:B61) -> 29 | C62: =SUM(C57:C61) -> 9407643.53 | D62: =SUM(D57:D61) -> 1 | E62: =SUM(E57:E61) -> 1
A64: INCLINE VILLAGE SALES MARKET
D65: % OF | E65: % OF | F65: RANK BY | G65: RANK BY
A66: TITLE COMPANY | B66: CLOSINGS | C66: DOLLAR VOLUME | D66: CLOSINGS | E66: DOLLAR VOLUME | F66: CLOSINGS | G66: DOLLAR VOLUME
A67: Ticor Title | B67: 13 | C67: 19579000 | D67: =B67/$B$70 -> 0.4814814815 | E67: =C67/$C$70 -> 0.537714733 | F67: 1 | G67: 1
A68: First American Title | B68: 10 | C68: 14127500 | D68: =B68/$B$70 -> 0.3703703704 | E68: =C68/$C$70 -> 0.3879955509 | F68: 2 | G68: 2
A69: First Centennial Title | B69: 4 | C69: 2705000 | D69: =B69/$B$70 -> 0.1481481481 | E69: =C69/$C$70 -> 0.07428971616 | F69: 3 | G69: 3
A70: GRAND TOTAL | B70: =SUM(B67:B69) -> 27 | C70: =SUM(C67:C69) -> 36411500 | D70: =SUM(D67:D69) -> 1 | E70: =SUM(E67:E69) -> 1
A72: RESIDENTIAL RESALE MARKET (Excluding Incline Village)
D73: % OF | E73: % OF | F73: RANK BY | G73: RANK BY
A74: TITLE COMPANY | B74: CLOSINGS | C74: DOLLAR VOLUME | D74: CLOSINGS | E74: DOLLAR VOLUME | F74: CLOSINGS | G74: DOLLAR VOLUME
A75: First Centennial Title | B75: 199 | C75: 86652351 | D75: =B75/$B$85 -> 0.3964143426 | E75: =C75/$C$85 -> 0.4081991396 | F75: =RANK(B75,$B$75:$B$84) -> 1 | G75: =RANK(C75,$C$75:$C$84) -> 1
A76: Ticor Title | B76: 92 | C76: 42910477.25 | D76: =B76/$B$85 -> 0.1832669323 | E76: =C76/$C$85 -> 0.2021413117 | F76: =RANK(B76,$B$75:$B$84) -> 2 | G76: =RANK(C76,$C$75:$C$84) -> 2
A77: Western Title | B77: 91 | C77: 36022046 | D77: =B77/$B$85 -> 0.1812749004 | E77: =C77/$C$85 -> 0.1696915088 | F77: 3 | G77: 3
A78: First American Title | B78: 31 | C78: 12776380 | D78: =B78/$B$85 -> 0.06175298805 | E78: =C78/$C$85 -> 0.06018656463 | F78: 4 | G78: 4
A79: Stewart Title | B79: 30 | C79: 10980418 | D79: =B79/$B$85 -> 0.05976095618 | E79: =C79/$C$85 -> 0.05172620395 | F79: 5 | G79: 6
A80: North American Title | B80: 28 | C80: 12139950 | D80: =B80/$B$85 -> 0.05577689243 | E80: =C80/$C$85 -> 0.05718849042 | F80: 6 | G80: 5
A81: Toiyabe Title | B81: 11 | C81: 3608900 | D81: =B81/$B$85 -> 0.0219123506 | E81: =C81/$C$85 -> 0.01700069136 | F81: 7 | G81: 8
A82: Signature Title Company | B82: 10 | C82: 3201530 | D82: =B82/$B$85 -> 0.01992031873 | E82: =C82/$C$85 -> 0.01508166572 | F82: 8 | G82: 9
A83: Acme Title and Escrow | B83: 9 | C83: 3895000 | D83: =B83/$B$85 -> 0.01792828685 | E83: =C83/$C$85 -> 0.01834844214 | F83: 9 | G83: 7
A84: Calatlantic Title West | B84: 1 | C84: 92550 | D84: =B84/$B$85 -> 0.001992031873 | E84: =C84/$C$85 -> 0.000435981597 | F84: 10 | G84: 10
A85: GRAND TOTAL | B85: =SUM(B75:B84) -> 502 | C85: =SUM(C75:C84) -> 212279602.2 | D85: =SUM(D75:D84) -> 1 | E85: =SUM(E75:E84) -> 1
A87: Information provided by Datasource
A88: www.datasourcenev.com

Sheet LOAN ONLY STATS
A1: LOAN ONLY MARKETS (Washoe County, NV)
A2: ='OVERALL STATS'!A2 -> Reporting Period: MAY, 2020
A4: CONVENTIONAL LOANS MARKET (Refi's)
D5: % OF | E5: % OF | F5: RANK BY | G5: RANK BY
A6: TITLECOMPANY | B6: CLOSINGS | C6: DOLLAR VOLUME | D6: CLOSINGS | E6: DOLLAR VOLUME | F6: CLOSINGS | G6: DOLLAR VOLUME
A7: First Centennial Title | B7: 280 | C7: 85453131 | D7: =B7/$B$17 -> 0.2631578947 | E7: =C7/$C$17 -> 0.2704003754 | F7: =RANK(B7,$B$7:$B$16) -> 1 | G7: =RANK(C7,$C$7:$C$16) -> 1
A8: Western Title | B8: 209 | C8: 62440237 | D8: =B8/$B$17 -> 0.1964285714 | E8: =C8/$C$17 -> 0.1975803967 | F8: =RANK(B8,$B$7:$B$16) -> 2 | G8: =RANK(C8,$C$7:$C$16) -> 2
A9: First American Title | B9: 171 | C9: 49869299 | D9: =B9/$B$17 -> 0.1607142857 | E9: =C9/$C$17 -> 0.1578020257 | F9: 3 | G9: 4
A10: Ticor Title | B10: 167 | C10: 51073395 | D10: 0.1569548872 | E10: 0.1616121612 | F10: 4 | G10: 3
A11: Stewart Title | B11: 107 | C11: 30933029 | D11: 0.1005639098 | E11: 0.09788175759 | F11: 5 | G11: 5
A12: No Conventional loans this month. | B12: 42 | C12: 11397283 | D12: 0.03947368421 | E12: 0.03606456037 | F12: 6 | G12: 6
A13: North American Title | B13: 40 | C13: 11194837 | D13: 0.03759398496 | E13: 0.03542395805 | F13: 7 | G13: 7
A14: Toiyabe Title | B14: 32 | C14: 8912223 | D14: =B14/$B$17 -> 0.03007518797 | E14: =C14/$C$17 -> 0.02820105497 | F14: 8 | G14: 8
A15: Signature Title Company | B15: 13 | C15: 4047600 | D15: =B15/$B$17 -> 0.01221804511 | E15: =C15/$C$17 -> 0.01280786961 | F15: 9 | G15: 9
A16: Driggs Title Agency | B16: 3 | C16: 703420 | D16: =B16/$B$17 -> 0.002819548872 | E16: =C16/$C$17 -> 0.002225840409 | F16: 10 | G16: 10
A17: GRAND TOTAL | B17: =SUM(B7:B16) -> 1064 | C17: =SUM(C7:C16) -> 316024454 | D17: =SUM(D7:D16) -> 1 | E17: =SUM(E7:E16) -> 1
A19: COMMERCIAL LOANS MARKET
D20: % OF | E20: % OF | F20: RANK BY | G20: RANK BY
A21: TITLECOMPANY | B21: CLOSINGS | C21: DOLLAR VOLUME | D21: CLOSINGS | E21: DOLLAR VOLUME | F21: CLOSINGS | G21: DOLLAR VOLUME
A22: First American Title | B22: 5 | C22: 8770000 | D22: =B22/$B$27 -> 0.3571428571 | E22: =C22/$C$27 -> 0.2500796686 | F22: 1 | G22: 2
A23: Western Title | B23: 4 | C23: 18178791 | D23: =B23/$B$27 -> 0.2857142857 | E23: =C23/$C$27 -> 0.5183746898 | F23: 2 | G23: 1
A24: First Centennial Title | B24: 2 | C24: 4790000 | D24: =B24/$B$27 -> 0.1428571429 | E24: =C24/$C$27 -> 0.1365885533 | F24: 3 | G24: 3
A25: Ticor Title | B25: 2 | C25: 2965033.46 | D25: =B25/$B$27 -> 0.1428571429 | E25: =C25/$C$27 -> 0.08454898348 | F25: 3 | G25: 4
A26: North American Title | B26: 1 | C26: 365000 | D26: =B26/$B$27 -> 0.07142857143 | E26: =C26/$C$27 -> 0.01040810479 | F26: 4 | G26: 5
A27: GRAND TOTAL | B27: =SUM(B22:B26) -> 14 | C27: =SUM(C22:C26) -> 35068824.46 | D27: =SUM(D22:D26) -> 1 | E27: =SUM(E22:E26) -> 1
A29: HOME EQUITY & CREDIT LINE LOANS MARKET
D30: % OF | E30: % OF | F30: RANK BY | G30: RANK BY
A31: TITLECOMPANY | B31: CLOSINGS | C31: DOLLAR VOLUME | D31: CLOSINGS | E31: DOLLAR VOLUME | F31: CLOSINGS | G31: DOLLAR VOLUME
A32: First Centennial Title | B32: 14 | C32: 1713002 | D32: =B32/$B$36 -> 0.5 | E32: =C32/$C$36 -> 0.6189984234 | F32: 1 | G32: 1
A33: Ticor Title | B33: 6 | C33: 497300 | D33: =B33/$B$36 -> 0.2142857143 | E33: =C33/$C$36 -> 0.1797008503 | F33: 2 | G33: 2
A34: Stewart Title | B34: 6 | C34: 431000 | D34: =B34/$B$36 -> 0.2142857143 | E34: =C34/$C$36 -> 0.1557431459 | F34: 2 | G34: 3
A35: First American Title | B35: 2 | C35: 126075 | D35: =B35/$B$36 -> 0.07142857143 | E35: =C35/$C$36 -> 0.04555758034 | F35: 3 | G35: 4
A36: GRAND TOTAL | B36: =SUM(B32:B35) -> 28 | C36: =SUM(C32:C35) -> 2767377 | D36: =SUM(D32:D35) -> 1 | E36: =SUM(E32:E35) -> 1
A38: CONSTRUCTION LOANS MARKET
D39: % OF | E39: % OF | F39: RANK BY | G39: RANK BY
A40: TITLECOMPANY | B40: CLOSINGS | C40: DOLLAR VOLUME | D40: CLOSINGS | E40: DOLLAR VOLUME | F40: CLOSINGS | G40: DOLLAR VOLUME
A41: First American Title | B41: 4 | C41: 3989239.12 | D41: =B41/$B$44 -> 0.5714285714 | E41: =C41/$C$44 -> 0.08638575999 | F41: 1 | G41: 3
A42: First Centennial Title | B42: 2 | C42: 35715391 | D42: =B42/$B$44 -> 0.2857142857 | E42: =C42/$C$44 -> 0.7734059309 | F42: 2 | G42: 1
A43: Western Title | B43: 1 | C43: 6474730 | D43: =B43/$B$44 -> 0.1428571429 | E43: =C43/$C$44 -> 0.1402083091 | F43: 3 | G43: 2
A44: GRAND TOTAL | B44: =SUM(B41:B43) -> 7 | C44: =SUM(C41:C43) -> 46179360.12 | D44: =SUM(D41:D43) -> 1 | E44: =SUM(E41:E43) -> 1
A46: HARD MONEY LOANS MARKET
D47: % OF | E47: % OF | F47: RANK BY | G47: RANK BY
A48: TITLECOMPANY | B48: CLOSINGS | C48: DOLLAR VOLUME | D48: CLOSINGS | E48: DOLLAR VOLUME | F48: CLOSINGS | G48: DOLLAR VOLUME
A49: First Centennial Title | B49: 4 | C49: 1265000 | D49: =B49/$B$54 -> 0.3333333333 | E49: =C49/$C$54 -> 0.223196181 | F49: 1 | G49: 2
A50: First American Title | B50: 3 | C50: 3181250 | D50: =B50/$B$54 -> 0.25 | E50: =C50/$C$54 -> 0.5612986962 | F50: 2 | G50: 1
A51: Western Title | B51: 3 | C51: 521614.97 | D51: =B51/$B$54 -> 0.25 | E51: =C51/$C$54 -> 0.09203357252 | F51: 2 | G51: 3
A52: North American Title | B52: 1 | C52: 440000 | D52: =B52/$B$54 -> 0.08333333333 | E52: =C52/$C$54 -> 0.07763345425 | F52: 3 | G52: 4
A53: Ticor Title | B53: 1 | C53: 259794.73 | D53: =B53/$B$54 -> 0.08333333333 | E53: =C53/$C$54 -> 0.0458380961 | F53: 3 | G53: 5
A54: GRAND TOTAL | B54: =SUM(B49:B53) -> 12 | C54: =SUM(C49:C53) -> 5667659.7 | D54: =SUM(D49:D53) -> 1 | E54: =SUM(E49:E53) -> 1
A56: CONVENTIONAL LOANS MARKET (Refi's) Excluding Incline Village
D57: % OF | E57: % OF | F57: RANK BY | G57: RANK BY
A58: TITLECOMPANY | B58: CLOSINGS | C58: DOLLAR VOLUME | D58: CLOSINGS | E58: DOLLAR VOLUME | F58: CLOSINGS | G58: DOLLAR VOLUME
A59: First Centennial Title | B59: 274 | C59: 82398181 | D59: =B59/$B$69 -> 0.2624521073 | E59: =C59/$C$69 -> 0.2724861601 | F59: =RANK(B59,$B$59:$B$68) -> 1 | G59: =RANK(C59,$C$59:$C$68) -> 1
A60: Western Title | B60: 209 | C60: 62440237 | D60: =B60/$B$69 -> 0.2001915709 | E60: =C60/$C$69 -> 0.2064863594 | F60: =RANK(B60,$B$59:$B$68) -> 2 | G60: =RANK(C60,$C$59:$C$68) -> 2
A61: First American Title | B61: 167 | C61: 47887299 | D61: =B61/$B$69 -> 0.1599616858 | E61: =C61/$C$69 -> 0.1583606102 | F61: 3 | G61: 3
A62: Ticor Title | B62: 157 | C62: 42479895 | D62: 0.1503831418 | E62: 0.1404786287 | F62: 4 | G62: 4
A63: Stewart Title | B63: 107 | C63: 30933029 | D63: 0.1024904215 | E63: 0.1022937909 | F63: 5 | G63: 5
A64: Acme Title and Escrow | B64: 42 | C64: 11397283 | D64: 0.04022988506 | E64: 0.03769017523 | F64: 6 | G64: 6
A65: North American Title | B65: 40 | C65: 11194837 | D65: 0.03831417625 | E65: 0.03702069767 | F65: 7 | G65: 7
A66: Toiyabe Title | B66: 32 | C66: 8912223 | D66: =B66/$B$69 -> 0.030651341 | E66: =C66/$C$69 -> 0.02947222128 | F66: 8 | G66: 8
A67: Signature Title Company | B67: 13 | C67: 4047600 | D67: =B67/$B$69 -> 0.01245210728 | E67: =C67/$C$69 -> 0.01338518604 | F67: 9 | G67: 9
A68: Driggs Title Agency | B68: 3 | C68: 703420 | D68: =B68/$B$69 -> 0.002873563218 | E68: =C68/$C$69 -> 0.002326170462 | F68: 10 | G68: 10
A69: GRAND TOTAL | B69: =SUM(B59:B68) -> 1044 | C69: =SUM(C59:C68) -> 302394004 | D69: =SUM(D59:D68) -> 1 | E69: =SUM(E59:E68) -> 1
A72: Information provided by Datasource
A73: www.datasourcenev.com

Sheet BRANCH SALES TRACKING
A1: BUILDER/DEVELOPER | B1: (All)
A2: PROPTYPE | B2: (All)
D4: Values
A5: TITLE COMPANY | B5: BRANCH | C5: EO | D5: CLOSINGS | E5: DOLLAR VOL. | F5: % OF CLOSINGS | G5: % OF DOLLAR VOL.
A6: Acme Title and Escrow | D6: 9 | E6: 3895000 | F6: 0.01269393512 | G6: 0.01074721961
B7: LANDER | D7: 9 | E7: 3895000 | F7: 0.01269393512 | G7: 0.01074721961
C8: LTE | D8: 6 | E8: 3218000 | F8: 0.008462623413 | G8: 0.008879217638
C9: UNK | D9: 1 | E9: 60000 | F9: 0.001410437236 | G9: 0.000165554089
C10: YC | D10: 2 | E10: 617000 | F10: 0.002820874471 | G10: 0.001702447881
A12: DHI Title of Nevada | D12: 17 | E12: 7250200 | F12: 0.023977433 | G12: 0.02000500426
B13: LONGLEY | D13: 17 | E13: 7250200 | F13: 0.023977433 | G13: 0.02000500426
C14: N/A | D14: 17 | E14: 7250200 | F14: 0.023977433 | G14: 0.02000500426
A16: First American Title | D16: 52 | E16: 36939046.67 | F16: 0.07334273625 | G16: 0.1019235036
B17: HENDERSON | D17: 1 | E17: 189000 | F17: 0.001410437236 | G17: 0.0005214953802
C18: TO | D18: 1 | E18: 189000 | F18: 0.001410437236 | G18: 0.0005214953802
B20: INCLINE | D20: 10 | E20: 14127500 | F20: 0.01410437236 | G20: 0.03898108986
C21: VD | D21: 10 | E21: 14127500 | F21: 0.01410437236 | G21: 0.03898108986
B23: KIETZKE | D23: 27 | E23: 16282389.67 | F23: 0.03808180536 | G23: 0.04492693646
C24: KS | D24: 7 | E24: 3190900 | F24: 0.009873060649 | G24: 0.008804442374
C25: MLR | D25: 5 | E25: 7096989.67 | F25: 0.007052186178 | G25: 0.01958226099
C26: TK | D26: 10 | E26: 3767000 | F26: 0.01410437236 | G26: 0.01039403755
C27: MH | D27: 5 | E27: 2227500 | F27: 0.007052186178 | G27: 0.006146195552
B29: LAS VEGAS | D29: 2 | E29: 1550000 | F29: 0.002820874471 | G29: 0.004276813965
C30: NCS | D30: 1 | E30: 1150000 | F30: 0.001410437236 | G30: 0.003173120038
C31: LM | D31: 1 | E31: 400000 | F31: 0.001410437236 | G31: 0.001103693926
B33: SPARKS | D33: 12 | E33: 4790157 | F33: 0.01692524683 | G33: 0.01321716797
C34: CY | D34: 9 | E34: 3227994 | F34: 0.01269393512 | G34: 0.00890679343
C35: JP | D35: 3 | E35: 1562163 | F35: 0.004231311707 | G35: 0.004310374538
A37: First Centennial Title | D37: 238 | E37: 109878304.1 | F37: 0.3356840621 | G37: 0.3031800423
B38: CARSON CITY | D38: 2 | E38: 1120000 | F38: 0.002820874471 | G38: 0.003090342994
C39: 23 | D39: 1 | E39: 470000 | F39: 0.001410437236 | G39: 0.001296840363
C40: 18 | D40: 1 | E40: 650000 | F40: 0.001410437236 | G40: 0.00179350263
B42: DAMONTE | D42: 29 | E42: 12436250 | F42: 0.04090267983 | G42: 0.03431453398
C43: 24 | D43: 29 | E43: 12436250 | F43: 0.04090267983 | G43: 0.03431453398
B45: INCLINE | D45: 4 | E45: 2705000 | F45: 0.005641748942 | G45: 0.007463730177
C46: 25 | D46: 4 | E46: 2705000 | F46: 0.005641748942 | G46: 0.007463730177
B48: LAKESIDE | D48: 20 | E48: 7501300 | F48: 0.02820874471 | G48: 0.02069784812
C49: 5 | D49: 20 | E49: 7501300 | F49: 0.02820874471 | G49: 0.02069784812
B51: LAKESIDEMOANA | D51: 36 | E51: 12549001 | F51: 0.05077574048 | G51: 0.03462564046
C52: 12 | D52: 36 | E52: 12549001 | F52: 0.05077574048 | G52: 0.03462564046
B54: RIDGEVIEW | D54: 110 | E54: 54445391.13 | F54: 0.1551480959 | G54: 0.1502276188
C55: 10 | D55: 23 | E55: 11141500 | F55: 0.03244005642 | G55: 0.0307420147
C56: 11 | D56: 12 | E56: 6842900 | F56: 0.01692524683 | G56: 0.01888116792
C57: 15 | D57: 12 | E57: 7122681 | F57: 0.01692524683 | G57: 0.0196531494
C58: 2 | D58: 2 | E58: 1250000 | F58: 0.002820874471 | G58: 0.00344904352
C59: 20 | D59: 27 | E59: 12356670.13 | F59: 0.03808180536 | G59: 0.03409495443
C60: 9 | D60: 34 | E60: 15731640 | F60: 0.04795486601 | G60: 0.0434072888
B62: SPARKS | D62: 37 | E62: 19121362 | F62: 0.05218617772 | G62: 0.05276032776
C63: 21 | D63: 37 | E63: 19121362 | F63: 0.05218617772 | G63: 0.05276032776
A65: North American Title | D65: 28 | E65: 12139950 | F65: 0.0394922426 | G65: 0.0334969727
B66: HAMMILL | D66: 28 | E66: 12139950 | F66: 0.0394922426 | G66: 0.0334969727
C67: RC | D67: 13 | E67: 5970800 | F67: 0.01833568406 | G67: 0.01647483924
C68: UNK | D68: 9 | E68: 4098650 | F68: 0.01269393512 | G68: 0.01130913778
C69: DMR | D69: 5 | E69: 1620500 | F69: 0.007052186178 | G69: 0.004471340019
C70: KM | D70: 1 | E70: 450000 | F70: 0.001410437236 | G70: 0.001241655667
A72: Ticor Title | D72: 124 | E72: 88339433.13 | F72: 0.1748942172 | G72: 0.2437492395
B73: CARSON CITY | D73: 4 | E73: 1190000 | F73: 0.005641748942 | G73: 0.003283489431
C74: 23 | D74: 1 | E74: 250000 | F74: 0.001410437236 | G74: 0.000689808704
C75: DKD | D75: 3 | E75: 940000 | F75: 0.004231311707 | G75: 0.002593680727
B77: GARDNERVILLE | D77: 3 | E77: 1283000 | F77: 0.004231311707 | G77: 0.003540098269
C78: RLT | D78: 3 | E78: 1283000 | F78: 0.004231311707 | G78: 0.003540098269
B80: INCLINE | D80: 13 | E80: 19579000 | F80: 0.01833568406 | G80: 0.05402305846
C81: SLP | D81: 13 | E81: 19579000 | F81: 0.01833568406 | G81: 0.05402305846
B83: KIETZKE | D83: 44 | E83: 36880205.88 | F83: 0.06205923836 | G83: 0.1017611481
C84: AE | D84: 22 | E84: 10853667 | F84: 0.03102961918 | G84: 0.02994781587
C85: CD | D85: 5 | E85: 19768888.88 | F85: 0.007052186178 | G85: 0.05454700647
C86: RLS | D86: 15 | E86: 5415650 | F86: 0.02115655853 | G86: 0.01494305003
C87: ACM | D87: 2 | E87: 842000 | F87: 0.002820874471 | G87: 0.002323275715
B89: LAKESIDE | D89: 60 | E89: 29407227.25 | F89: 0.08462623413 | G89: 0.08114144527
C90: 5 | D90: 1 | E90: 420000 | F90: 0.001410437236 | G90: 0.001158878623
C91: JN | D91: 25 | E91: 14366500 | F91: 0.03526093089 | G91: 0.03964054698
C92: SL | D92: 34 | E92: 14620727.25 | F92: 0.04795486601 | G92: 0.04034201966
A94: Toiyabe Title | D94: 11 | E94: 3608900 | F94: 0.01551480959 | G94: 0.009957802527
B95: MCCARRAN | D95: 11 | E95: 3608900 | F95: 0.01551480959 | G95: 0.009957802527
C96: JH | D96: 6 | E96: 2108900 | F96: 0.008462623413 | G96: 0.005818950303
C97: KM | D97: 3 | E97: 941000 | F97: 0.004231311707 | G97: 0.002596439962
C98: CE | D98: 2 | E98: 559000 | F98: 0.002820874471 | G98: 0.001542412262
A100: Western Title | D100: 134 | E100: 54375802 | F100: 0.1889985896 | G100: 0.150035606
B101: CARSON CITY | D101: 1 | E101: 303000 | F101: 0.001410437236 | G101: 0.0008360481492
C102: AMG | D102: 1 | E102: 303000 | F102: 0.001410437236 | G102: 0.0008360481492
B104: GARDNERVILLE | D104: 1 | E104: 434000 | F104: 0.001410437236 | G104: 0.00119750791
C105: ARJ | D105: 1 | E105: 434000 | F105: 0.001410437236 | G105: 0.00119750791
B107: KIETZKE | D107: 95 | E107: 38415294 | F107: 0.1339915374 | G107: 0.1059968167
C108: JMS | D108: 18 | E108: 5565900 | F108: 0.02538787024 | G108: 0.01535762506
C109: MDD | D109: 29 | E109: 11464073 | F109: 0.04090267983 | G109: 0.03163206935
C110: MLM | D110: 7 | E110: 3074000 | F110: 0.009873060649 | G110: 0.008481887824
C111: PAH | D111: 5 | E111: 3401904 | F111: 0.007052186178 | G111: 0.009386651957
C112: SAB | D112: 15 | E112: 5220750 | F112: 0.02115655853 | G112: 0.01440527517
C113: TEF | D113: 21 | E113: 9688667 | F113: 0.02961918195 | G113: 0.02673330731
B115: SOUTH KIETZKE | D115: 37 | E115: 15223508 | F115: 0.05218617772 | G115: 0.04200523329
C116: ASK | D116: 7 | E116: 2984500 | F116: 0.009873060649 | G116: 0.008234936308
C117: CKL | D117: 7 | E117: 3347300 | F117: 0.009873060649 | G117: 0.009235986699
C118: CRF | D118: 14 | E118: 5950808 | F118: 0.0197461213 | G118: 0.01641967662
C119: MIF | D119: 8 | E119: 2490900 | F119: 0.01128349788 | G119: 0.006872978003
C120: PHB | D120: 1 | E120: 450000 | F120: 0.001410437236 | G120: 0.001241655667
A122: Westminster Title - Las Vegas | D122: 21 | E122: 15880274 | F122: 0.02961918195 | G122: 0.04381740491
B123: LAS VEGAS | D123: 21 | E123: 15880274 | F123: 0.02961918195 | G123: 0.04381740491
C124: TB | D124: 21 | E124: 15880274 | F124: 0.02961918195 | G124: 0.04381740491
A126: Stewart Title | D126: 32 | E126: 11500418 | F126: 0.04513399154 | G126: 0.03173235374
B127: PLUMB | D127: 16 | E127: 5184018 | F127: 0.02256699577 | G127: 0.01430392295
C128: UNK | D128: 16 | E128: 5184018 | F128: 0.02256699577 | G128: 0.01430392295
B130: PROFESSIONAL | D130: 16 | E130: 6316400 | F130: 0.02256699577 | G130: 0.01742843079
C131: UNK | D131: 16 | E131: 6316400 | F131: 0.02256699577 | G131: 0.01742843079
A133: Calatlantic Title West | D133: 33 | E133: 15410460 | F133: 0.04654442877 | G133: 0.04252107776
B134: MCCARRAN | D134: 33 | E134: 15410460 | F134: 0.04654442877 | G134: 0.04252107776
C135: LH | D135: 33 | E135: 15410460 | F135: 0.04654442877 | G135: 0.04252107776
A137: Signature Title Company | D137: 10 | E137: 3201530 | F137: 0.01410437236 | G137: 0.00883377304
B138: RENO CORPORATE | D138: 10 | E138: 3201530 | F138: 0.01410437236 | G138: 0.00883377304
C139: FF | D139: 4 | E139: 1447530 | F139: 0.005641748942 | G139: 0.003994075173
C140: DP | D140: 4 | E140: 1237000 | F140: 0.005641748942 | G140: 0.003413173467
C141: HB | D141: 2 | E141: 517000 | F141: 0.002820874471 | G141: 0.0014265244
A143: Grand Total | D143: 709 | E143: 362419317.9 | F143: 1 | G143: 1

Sheet LENDER TRACKING
A1: TYPELOAN | B1: (All)
C3: Values
A4: LENDER | B4: TITLE COMPANY | C4: CLOSINGS | D4: DOLLAR VOL. | E4: % OF CLOSINGS | F4: % OF DOLLAR VOL.
A5: ACADEMY MORTGAGE CORPORATION | C5: 1 | D5: 280000 | E5: 0.0008888888889 | F5: 0.0006901520899
B6: Western Title | C6: 1 | D6: 280000 | E6: 0.0008888888889 | F6: 0.0006901520899
A8: ALL WESTERN MORTGAGE INC | C8: 21 | D8: 6036392 | E8: 0.01866666667 | F8: 0.01487867341
B9: First American Title | C9: 12 | D9: 3085162 | E9: 0.01066666667 | F9: 0.007604396436
B10: First Centennial Title | C10: 1 | D10: 395200 | E10: 0.0008888888889 | F10: 0.0009741003784
B11: North American Title | C11: 4 | D11: 1118880 | E11: 0.003555555556 | F11: 0.002757847751
B12: Ticor Title | C12: 1 | D12: 291000 | E12: 0.0008888888889 | F12: 0.0007172652078
B13: Western Title | C13: 2 | D13: 740150 | E13: 0.001777777778 | F13: 0.001824343105
B14: Stewart Title | C14: 1 | D14: 406000 | E14: 0.0008888888889 | F14: 0.00100072053
A16: AMERICAN FINANCIAL NETWORK INC | C16: 1 | D16: 205500 | E16: 0.0008888888889 | F16: 0.0005065223374
B17: First Centennial Title | C17: 1 | D17: 205500 | E17: 0.0008888888889 | F17: 0.0005065223374
A19: AMERICAN PACIFIC MORTGAGE CORPORATION | C19: 10 | D19: 3339171 | E19: 0.008888888889 | F19: 0.008230485158
B20: Acme Title and Escrow | C20: 1 | D20: 144000 | E20: 0.0008888888889 | F20: 0.0003549353605
B21: First American Title | C21: 6 | D21: 1908000 | E21: 0.005333333333 | F21: 0.004702893527
B22: First Centennial Title | C22: 1 | D22: 334171 | E22: 0.0008888888889 | F22: 0.0008236743359
B23: Ticor Title | C23: 2 | D23: 953000 | E23: 0.001777777778 | F23: 0.002348981935
A25: AXIA FINANCIAL LLC | C25: 24 | D25: 6299774 | E25: 0.02133333333 | F25: 0.01552786497
B26: First American Title | C26: 1 | D26: 433500 | E26: 0.0008888888889 | F26: 0.001068503325
B27: Ticor Title | C27: 10 | D27: 2709039 | E27: 0.008888888889 | F27: 0.006677317599
B28: Western Title | C28: 3 | D28: 751500 | E28: 0.002666666667 | F28: 0.001852318913
B29: Stewart Title | C29: 10 | D29: 2405735 | E29: 0.008888888889 | F29: 0.005929725136
A31: BANK OF AMERICA NA | C31: 2 | D31: 535000 | E31: 0.001777777778 | F31: 0.001318683458
B32: First Centennial Title | C32: 2 | D32: 535000 | E32: 0.001777777778 | F32: 0.001318683458
A34: BANK OF THE WEST | C34: 4 | D34: 879500 | E34: 0.003555555556 | F34: 0.002167817011
B35: First American Title | C35: 3 | D35: 729500 | E35: 0.002666666667 | F35: 0.001798092677
B36: Ticor Title | C36: 1 | D36: 150000 | E36: 0.0008888888889 | F36: 0.0003697243339
A38: BAY EQUITY LLC | C38: 12 | D38: 3678320 | E38: 0.01066666667 | F38: 0.009066429412
B39: Acme Title and Escrow | C39: 4 | D39: 1207000 | E39: 0.003555555556 | F39: 0.002975048473
B40: First American Title | C40: 1 | D40: 335750 | E40: 0.0008888888889 | F40: 0.0008275663007
B41: Western Title | C41: 1 | D41: 281538 | E41: 0.0008888888889 | F41: 0.0006939429968
B42: Stewart Title | C42: 6 | D42: 1854032 | E42: 0.005333333333 | F42: 0.004569871641
A44: CALIBER HOME LOANS INC | C44: 39 | D44: 12171400 | E44: 0.03466666667 | F44: 0.03000041838
B45: Acme Title and Escrow | C45: 9 | D45: 2312000 | E45: 0.008 | F45: 0.0056986844
B46: First American Title | C46: 12 | D46: 3964700 | E46: 0.01066666667 | F46: 0.009772307111
B47: First Centennial Title | C47: 8 | D47: 2290000 | E47: 0.007111111111 | F47: 0.005644458164
B48: Ticor Title | C48: 2 | D48: 656400 | E48: 0.001777777778 | F48: 0.001617913685
B49: Western Title | C49: 8 | D49: 2948300 | E49: 0.007111111111 | F49: 0.007267055024
A51: CARDINAL FINANCIAL COMPANY LIMITED PARTNERSHIP | C51: 17 | D51: 5635982 | E51: 0.01511111111 | F51: 0.01389173127
B52: First American Title | C52: 1 | D52: 226732 | E52: 0.0008888888889 | F52: 0.0005588555845
B53: First Centennial Title | C53: 8 | D53: 2664550 | E53: 0.007111111111 | F53: 0.006567659826
B54: Ticor Title | C54: 7 | D54: 2542200 | E54: 0.006222222222 | F54: 0.006266088011
B55: Western Title | C55: 1 | D55: 202500 | E55: 0.0008888888889 | F55: 0.0004991278508
A57: CITY NATIONAL BANK | C57: 1 | D57: 300000 | E57: 0.0008888888889 | F57: 0.0007394486678
B58: Western Title | C58: 1 | D58: 300000 | E58: 0.0008888888889 | F58: 0.0007394486678
A60: EVERGREEN MONEYSOURCE MORTGAGE COMPANY | C60: 32 | D60: 9876976 | E60: 0.02844444444 | F60: 0.02434505582
B61: First Centennial Title | C61: 1 | D61: 225000 | E61: 0.0008888888889 | F61: 0.0005545865008
B62: Ticor Title | C62: 7 | D62: 2241750 | E62: 0.006222222222 | F62: 0.00552553017
B63: Western Title | C63: 24 | D63: 7410226 | E63: 0.02133333333 | F63: 0.01826493915
A65: FAIRWAY INDEPENDENT MORTGAGE CORPORATION | C65: 7 | D65: 1764209 | E65: 0.006222222222 | F65: 0.004348473316
B66: First Centennial Title | C66: 2 | D66: 592000 | E66: 0.001777777778 | F66: 0.001459178704
B67: Ticor Title | C67: 5 | D67: 1172209 | E67: 0.004444444444 | F67: 0.002889294611
A69: FINANCE OF AMERICA MORTGAGE LLC | C69: 13 | D69: 4067723 | E69: 0.01155555556 | F69: 0.01002624118
B70: First American Title | C70: 3 | D70: 1059536 | E70: 0.002666666667 | F70: 0.002611574946
B71: Western Title | C71: 2 | D71: 447000 | E71: 0.001777777778 | F71: 0.001101778515
B72: Stewart Title | C72: 8 | D72: 2561187 | E72: 0.007111111111 | F72: 0.006312887717
A74: FLAGSTAR BANK FSB | C74: 13 | D74: 3970413 | E74: 0.01155555556 | F74: 0.009786388678
B75: First American Title | C75: 1 | D75: 250000 | E75: 0.0008888888889 | F75: 0.0006162072232
B76: First Centennial Title | C76: 4 | D76: 1468925 | E76: 0.003555555556 | F76: 0.003620648781
B77: Western Title | C77: 8 | D77: 2251488 | E77: 0.007111111111 | F77: 0.005549532674
A79: GREAT BASIN FEDERAL CREDIT UNION | C79: 4 | D79: 402500 | E79: 0.003555555556 | F79: 0.0009920936293
B80: Western Title | C80: 2 | D80: 346500 | E80: 0.001777777778 | F80: 0.0008540632113
B81: Stewart Title | C81: 2 | D81: 56000 | E81: 0.001777777778 | F81: 0.000138030418
A83: GREATER NEVADA CREDIT UNION | C83: 4 | D83: 399800 | E83: 0.003555555556 | F83: 0.0009854385913
B84: First Centennial Title | C84: 1 | D84: 50000 | E84: 0.0008888888889 | F84: 0.0001232414446
B85: Ticor Title | C85: 3 | D85: 349800 | E85: 0.002666666667 | F85: 0.0008621971466
A87: GREATER NEVADA MORTGAGE | C87: 56 | D87: 15082875 | E87: 0.04977777778 | F87: 0.03717670608
B88: Acme Title and Escrow | C88: 1 | D88: 326000 | E88: 0.0008888888889 | F88: 0.000803534219
B89: First American Title | C89: 10 | D89: 3166300 | E89: 0.008888888889 | F89: 0.007804387723
B90: First Centennial Title | C90: 10 | D90: 2773000 | E90: 0.008888888889 | F90: 0.006834970519
B91: North American Title | C91: 1 | D91: 384000 | E91: 0.0008888888889 | F91: 0.0009464942948
B92: Ticor Title | C92: 17 | D92: 3558025 | E92: 0.01511111111 | F92: 0.008769922821
B93: Western Title | C93: 6 | D93: 1843000 | E93: 0.005333333333 | F93: 0.004542679649
B94: Stewart Title | C94: 11 | D94: 3032550 | E94: 0.009777777778 | F94: 0.007474716858
A96: GUARANTEED RATE INC | C96: 13 | D96: 2919531 | E96: 0.01155555556 | F96: 0.007196144362
B97: First Centennial Title | C97: 11 | D97: 2318531 | E97: 0.009777777778 | F97: 0.005714782197
B98: Ticor Title | C98: 2 | D98: 601000 | E98: 0.001777777778 | F98: 0.001481362164
A100: GUILD MORTGAGE COMPANY | C100: 164 | D100: 45287400 | E100: 0.1457777778 | F100: 0.111625692
B101: Acme Title and Escrow | C101: 4 | D101: 1059069 | E101: 0.003555555556 | F101: 0.002610423871
B102: First American Title | C102: 38 | D102: 10674570 | E102: 0.03377777778 | F102: 0.02631098855
B103: First Centennial Title | C103: 10 | D103: 3240367 | E103: 0.008888888889 | F103: 0.007986950204
B104: North American Title | C104: 1 | D104: 332000 | E104: 0.0008888888889 | F104: 0.0008183231924
B105: Ticor Title | C105: 34 | D105: 8812599 | E105: 0.03022222222 | F105: 0.02172154863
B106: Toiyabe Title | C106: 14 | D106: 3942381 | E106: 0.01244444444 | F106: 0.009717294595
B107: Western Title | C107: 43 | D107: 11769194 | E107: 0.03822222222 | F107: 0.02900904941
B108: Stewart Title | C108: 19 | D108: 5053920 | E108: 0.01688888889 | F108: 0.01245704804
B109: Signature Title Company | C109: 1 | D109: 403300 | E109: 0.0008888888889 | F109: 0.0009940654924
A111: HERITAGE BANK OF NEVADA | C111: 14 | D111: 12243269.12 | E111: 0.01244444444 | F111: 0.03017756347
B112: First American Title | C112: 5 | D112: 4189239.12 | E112: 0.004444444444 | F112: 0.01032575762
B113: First Centennial Title | C113: 7 | D113: 1179300 | E113: 0.006222222222 | F113: 0.002906772713
B114: Western Title | C114: 2 | D114: 6874730 | E114: 0.001777777778 | F114: 0.01694503313
A116: HOMEBRIDGE FINANCIAL SERVICES INC | C116: 4 | D116: 1270050 | E116: 0.003555555556 | F116: 0.003130455935
B117: First Centennial Title | C117: 3 | D117: 840050 | E117: 0.002666666667 | F117: 0.002070579511
B118: Western Title | C118: 1 | D118: 430000 | E118: 0.0008888888889 | F118: 0.001059876424
A120: HOMEOWNERS FINANCIAL GROUP USA LLC | C120: 8 | D120: 2145350 | E120: 0.007111111111 | F120: 0.005287920665
B121: First Centennial Title | C121: 3 | D121: 500600 | E121: 0.002666666667 | F121: 0.001233893344
B122: North American Title | C122: 4 | D122: 1294750 | E122: 0.003555555556 | F122: 0.003191337209
B123: Ticor Title | C123: 1 | D123: 350000 | E123: 0.0008888888889 | F123: 0.0008626901124
A125: ISERVE RESIDENTIAL LENDING LLC | C125: 6 | D125: 1707926 | E125: 0.005333333333 | F125: 0.004209745351
B126: First Centennial Title | C126: 2 | D126: 468226 | E126: 0.001777777778 | F126: 0.001154096973
B127: North American Title | C127: 4 | D127: 1239700 | E127: 0.003555555556 | F127: 0.003055648378
A129: JPMORGAN CHASE BANK NA | C129: 3 | D129: 1328891 | E129: 0.002666666667 | F129: 0.003275488932
B130: First Centennial Title | C130: 2 | D130: 781891 | E130: 0.001777777778 | F130: 0.001927227528
B131: Ticor Title | C131: 1 | D131: 547000 | E131: 0.0008888888889 | F131: 0.001348261404
A133: LOANDEPOT.COM LLC | C133: 10 | D133: 3185500 | E133: 0.008888888889 | F133: 0.007851712438
B134: First Centennial Title | C134: 8 | D134: 2551500 | E134: 0.007111111111 | F134: 0.00628901092
B135: Western Title | C135: 2 | D135: 634000 | E135: 0.001777777778 | F135: 0.001562701518
A137: MANN MORTGAGE LLC | C137: 6 | D137: 1272500 | E137: 0.005333333333 | F137: 0.003136494766
B138: First Centennial Title | C138: 3 | D138: 527500 | E138: 0.002666666667 | F138: 0.001300197241
B139: Ticor Title | C139: 1 | D139: 246000 | E139: 0.0008888888889 | F139: 0.0006063479076
B140: Western Title | C140: 1 | D140: 321000 | E140: 0.0008888888889 | F140: 0.0007912100745
B141: Stewart Title | C141: 1 | D141: 178000 | E141: 0.0008888888889 | F141: 0.0004387395429
A143: MASON MCDUFFIE MORTGAGE CORPORATION | C143: 6 | D143: 1863400 | E143: 0.005333333333 | F143: 0.004592962159
B144: First American Title | C144: 1 | D144: 269400 | E144: 0.0008888888889 | F144: 0.0006640249037
B145: First Centennial Title | C145: 1 | D145: 391500 | E145: 0.0008888888889 | F145: 0.0009649805115
B146: Western Title | C146: 4 | D146: 1202500 | E146: 0.003555555556 | F146: 0.002963956743
A148: MORGAN STANLEY PRIVATE BANK NATIONAL ASSOCIATION | C148: 3 | D148: 3800000 | E148: 0.002666666667 | F148: 0.009366349792
B149: First American Title | C149: 1 | D149: 600000 | E149: 0.0008888888889 | F149: 0.001478897336
B150: First Centennial Title | C150: 1 | D150: 740000 | E150: 0.0008888888889 | F150: 0.001823973381
B151: Ticor Title | C151: 1 | D151: 2460000 | E151: 0.0008888888889 | F151: 0.006063479076
A153: MOUNTAIN AMERICA FEDERAL CREDIT UNION | C153: 6 | D153: 1823475 | E153: 0.005333333333 | F153: 0.004494553865
B154: First American Title | C154: 2 | D154: 332375 | E154: 0.001777777778 | F154: 0.0008192475032
B155: First Centennial Title | C155: 2 | D155: 793100 | E155: 0.001777777778 | F155: 0.001954855795
B156: Western Title | C156: 2 | D156: 698000 | E156: 0.001777777778 | F156: 0.001720450567
A158: NEVADA STATE BANK | C158: 13 | D158: 16407141 | E158: 0.01155555556 | F158: 0.04044079518
B159: First American Title | C159: 2 | D159: 545000 | E159: 0.001777777778 | F159: 0.001343331746
B160: First Centennial Title | C160: 3 | D160: 559200 | E160: 0.002666666667 | F160: 0.001378332317
B161: Ticor Title | C161: 4 | D161: 1290629 | E161: 0.003555555556 | F161: 0.003181179649
B162: Western Title | C162: 1 | D162: 13361591 | E162: 0.0008888888889 | F162: 0.03293403555
B163: Stewart Title | C163: 3 | D163: 650721 | E163: 0.002666666667 | F163: 0.001603915922
A165: NEVADA STATE DEVELOPMENT CORPORATION | C165: 1 | D165: 1559000 | E165: 0.0008888888889 | F165: 0.003842668244
B166: First American Title | C166: 1 | D166: 1559000 | E166: 0.0008888888889 | F166: 0.003842668244
A168: NEW AMERICAN FUNDING | C168: 59 | D168: 17133489 | E168: 0.05244444444 | F168: 0.04223111872
B169: Acme Title and Escrow | C169: 7 | D169: 2131178 | E169: 0.006222222222 | F169: 0.00525298911
B170: First American Title | C170: 19 | D170: 5519150 | E170: 0.01688888889 | F170: 0.01360376038
B171: First Centennial Title | C171: 5 | D171: 1594272 | E171: 0.004444444444 | F171: 0.003929607688
B172: North American Title | C172: 1 | D172: 292000 | E172: 0.0008888888889 | F172: 0.0007197300367
B173: Ticor Title | C173: 2 | D173: 628800 | E173: 0.001777777778 | F173: 0.001549884408
B174: Toiyabe Title | C174: 5 | D174: 1121342 | E174: 0.004444444444 | F174: 0.00276391616
B175: Western Title | C175: 16 | D175: 4685247 | E175: 0.01422222222 | F175: 0.01154833217
B176: Stewart Title | C176: 4 | D176: 1161500 | E176: 0.003555555556 | F176: 0.002862898759
A178: ON Q FINANCIAL INC | C178: 11 | D178: 3446795 | E178: 0.009777777778 | F178: 0.008495759903
B179: Acme Title and Escrow | C179: 2 | D179: 578500 | E179: 0.001777777778 | F179: 0.001425903514
B180: First Centennial Title | C180: 3 | D180: 1017200 | E180: 0.002666666667 | F180: 0.00250722395
B181: Ticor Title | C181: 4 | D181: 1098295 | E181: 0.003555555556 | F181: 0.002707109249
B182: Toiyabe Title | C182: 1 | D182: 443000 | E182: 0.0008888888889 | F182: 0.001091919199
B183: Western Title | C183: 1 | D183: 309800 | E183: 0.0008888888889 | F183: 0.0007636039909
A185: ONE NEVADA CREDIT UNION | C185: 19 | D185: 5208500 | E185: 0.01688888889 | F185: 0.01283806129
B186: First Centennial Title | C186: 17 | D186: 4564800 | E186: 0.01511111111 | F186: 0.01125145093
B187: Stewart Title | C187: 2 | D187: 643700 | E187: 0.001777777778 | F187: 0.001586610358
A189: ONETRUST HOME LOANS | C189: 25 | D189: 7648515 | E189: 0.02222222222 | F189: 0.01885228076
B190: Acme Title and Escrow | C190: 7 | D190: 1762114 | E190: 0.006222222222 | F190: 0.004343309499
B191: First American Title | C191: 1 | D191: 389500 | E191: 0.0008888888889 | F191: 0.0009600508537
B192: First Centennial Title | C192: 5 | D192: 1564126 | E192: 0.004444444444 | F192: 0.003855302957
B193: North American Title | C193: 1 | D193: 212000 | E193: 0.0008888888889 | F193: 0.0005225437252
B194: Western Title | C194: 4 | D194: 1352875 | E194: 0.003555555556 | F194: 0.003334605388
B195: Signature Title Company | C195: 7 | D195: 2367900 | E195: 0.006222222222 | F195: 0.005836468335
A197: PARAMOUNT RESIDENTIAL MORTGAGE GROUP INC | C197: 4 | D197: 1008764 | E197: 0.003555555556 | F197: 0.002486430653
B198: First Centennial Title | C198: 4 | D198: 1008764 | E198: 0.003555555556 | F198: 0.002486430653
A200: PRIMELENDING | C200: 38 | D200: 10322224 | E200: 0.03377777778 | F200: 0.02544251595
B201: Acme Title and Escrow | C201: 3 | D201: 743422 | E201: 0.002666666667 | F201: 0.001832408025
B202: First Centennial Title | C202: 11 | D202: 3120788 | E202: 0.009777777778 | F202: 0.00769220843
B203: North American Title | C203: 4 | D203: 1085065 | E203: 0.003555555556 | F203: 0.002674499562
B204: Ticor Title | C204: 9 | D204: 2038116 | E204: 0.008 | F204: 0.005023607203
B205: Toiyabe Title | C205: 1 | D205: 450000 | E205: 0.0008888888889 | F205: 0.001109173002
B206: Western Title | C206: 6 | D206: 1759383 | E206: 0.005333333333 | F206: 0.004336578052
B207: Stewart Title | C207: 4 | D207: 1125450 | E207: 0.003555555556 | F207: 0.002774041677
A209: PROVIDENT FUNDING ASSOCIATES LP | C209: 14 | D209: 4094450 | E209: 0.01244444444 | F209: 0.01009211866
B210: First American Title | C210: 1 | D210: 320500 | E210: 0.0008888888889 | F210: 0.0007899776601
B211: Western Title | C211: 13 | D211: 3773950 | E211: 0.01155555556 | F211: 0.009302140999
A213: QUICKEN LOANS INC | C213: 3 | D213: 703100 | E213: 0.002666666667 | F213: 0.001733021194
B214: First American Title | C214: 1 | D214: 259200 | E214: 0.0008888888889 | F214: 0.000638883649
B215: First Centennial Title | C215: 1 | D215: 245900 | E215: 0.0008888888889 | F215: 0.0006061014247
B216: Ticor Title | C216: 1 | D216: 198000 | E216: 0.0008888888889 | F216: 0.0004880361207
A218: RESIDENTIAL BANCORP | C218: 2 | D218: 501000 | E218: 0.001777777778 | F218: 0.001234879275
B219: First Centennial Title | C219: 2 | D219: 501000 | E219: 0.001777777778 | F219: 0.001234879275
A221: SIERRA PACIFIC FEDERAL CREDIT UNION | C221: 5 | D221: 425000 | E221: 0.004444444444 | F221: 0.001047552279
B222: Ticor Title | C222: 1 | D222: 50000 | E222: 0.0008888888889 | F222: 0.0001232414446
B223: Stewart Title | C223: 4 | D223: 375000 | E223: 0.003555555556 | F223: 0.0009243108347
A225: SIERRA PACIFIC MORTGAGE COMPANY INC | C225: 4 | D225: 1293300 | E225: 0.003555555556 | F225: 0.003187763207
B226: First Centennial Title | C226: 3 | D226: 1032300 | E226: 0.002666666667 | F226: 0.002544442866
B227: Ticor Title | C227: 1 | D227: 261000 | E227: 0.0008888888889 | F227: 0.000643320341
A229: SUMMIT FUNDING INC | C229: 18 | D229: 5255776 | E229: 0.016 | F229: 0.01295458854
B230: First American Title | C230: 5 | D230: 1326911 | E230: 0.004444444444 | F230: 0.003270608571
B231: First Centennial Title | C231: 8 | D231: 2315105 | E231: 0.007111111111 | F231: 0.005706337694
B232: North American Title | C232: 1 | D232: 270000 | E232: 0.0008888888889 | F232: 0.000665503801
B233: Western Title | C233: 4 | D233: 1343760 | E233: 0.003555555556 | F233: 0.003312138473
A235: SYNERGY HOME MORTGAGE LLC | C235: 36 | D235: 10890818 | E235: 0.032 | F235: 0.02684400287
B236: First Centennial Title | C236: 33 | D236: 10051318 | E236: 0.02933333333 | F236: 0.02477477902
B237: Ticor Title | C237: 1 | D237: 325000 | E237: 0.0008888888889 | F237: 0.0008010693901
B238: Western Title | C238: 1 | D238: 227500 | E238: 0.0008888888889 | F238: 0.0005607485731
B239: Signature Title Company | C239: 1 | D239: 287000 | E239: 0.0008888888889 | F239: 0.0007074058922
A241: UMPQUA BANK | C241: 9 | D241: 3175801 | E241: 0.008 | F241: 0.007827806062
B242: First Centennial Title | C242: 2 | D242: 560001 | E242: 0.001777777778 | F242: 0.001380306645
B243: North American Title | C243: 2 | D243: 438300 | E243: 0.001777777778 | F243: 0.001080334504
B244: Ticor Title | C244: 1 | D244: 465500 | E244: 0.0008888888889 | F244: 0.00114737785
B245: Stewart Title | C245: 4 | D245: 1712000 | E245: 0.003555555556 | F245: 0.004219787064
A247: UNITED FEDERAL CREDIT UNION | C247: 52 | D247: 15844628.46 | E247: 0.04622222222 | F247: 0.03905429802
... 279 more rows

Sheet BUILDER TRACKING
A1: BUILDER TRACKING
A2: ='OVERALL STATS'!A2 -> Reporting Period: MAY, 2020
A4: BUILDER | B4: CLOSINGS | C4: DOLLARVOL | D4: AVERAGE | E4: % OF CLOSINGS | F4: % OF $$$ VOLUME
A5: LENNAR RENO LLC | B5: 32 | C5: 15317910 | D5: 478684.6875 | E5: =Table2[[#This Row],[CLOSINGS]]/$B$32 -> 0.2302158273 | F5: =Table2[[#This Row],[DOLLARVOL]]/$C$32 -> 0.1976741887
A6: TOLL NV LIMITED PARTNERSHIP | B6: 19 | C6: 14357713 | D6: 755669.1053 | E6: =Table2[[#This Row],[CLOSINGS]]/$B$32 -> 0.1366906475 | F6: =Table2[[#This Row],[DOLLARVOL]]/$C$32 -> 0.185283062
A7: DR HORTON INC | B7: 17 | C7: 7250200 | D7: 426482.3529 | E7: =Table2[[#This Row],[CLOSINGS]]/$B$32 -> 0.1223021583 | F7: =Table2[[#This Row],[DOLLARVOL]]/$C$32 -> 0.09356220285
A8: TERRENO DEVELOPMENT LLC | B8: 8 | C8: 4138469 | D8: 517308.625 | E8: =Table2[[#This Row],[CLOSINGS]]/$B$32 -> 0.05755395683 | F8: =Table2[[#This Row],[DOLLARVOL]]/$C$32 -> 0.05340601308
A9: WVN PHASE 21 LLC | B9: 7 | C9: 2619167 | D9: 374166.7143 | E9: =Table2[[#This Row],[CLOSINGS]]/$B$32 -> 0.05035971223 | F9: =Table2[[#This Row],[DOLLARVOL]]/$C$32 -> 0.03379976196
A10: SILVERADO EAGLE CANYON LLC | B10: 6 | C10: 2880985 | D10: 480164.1667 | E10: =Table2[[#This Row],[CLOSINGS]]/$B$32 -> 0.04316546763 | F10: =Table2[[#This Row],[DOLLARVOL]]/$C$32 -> 0.03717846445
A11: PARADISO COMMUNITIES LLC | B11: 6 | C11: 2329213 | D11: 388202.1667 | E11: =Table2[[#This Row],[CLOSINGS]]/$B$32 -> 0.04316546763 | F11: =Table2[[#This Row],[DOLLARVOL]]/$C$32 -> 0.0300579707
A12: SILVERADO CYAN LLC | B12: 5 | C12: 2055994 | D12: 411198.8 | E12: =Table2[[#This Row],[CLOSINGS]]/$B$32 -> 0.03597122302 | F12: =Table2[[#This Row],[DOLLARVOL]]/$C$32 -> 0.02653214086
A13: WEST COAST HOME BUILDERS INC | B13: 4 | C13: 5934938 | D13: 1483734.5 | E13: =Table2[[#This Row],[CLOSINGS]]/$B$32 -> 0.02877697842 | F13: =Table2[[#This Row],[DOLLARVOL]]/$C$32 -> 0.0765890421
A14: RYDER SHADOW LLC | B14: 4 | C14: 2614211 | D14: 653552.75 | E14: =Table2[[#This Row],[CLOSINGS]]/$B$32 -> 0.02877697842 | F14: =Table2[[#This Row],[DOLLARVOL]]/$C$32 -> 0.03373580589
A15: EAGLE CANYON SOUTH LLC | B15: 4 | C15: 1849427 | D15: 462356.75 | E15: =Table2[[#This Row],[CLOSINGS]]/$B$32 -> 0.02877697842 | F15: =Table2[[#This Row],[DOLLARVOL]]/$C$32 -> 0.02386644012
A16: WEDGE MEADOWS HOMES LLC | B16: 3 | C16: 1976458 | D16: 658819.3333 | E16: =Table2[[#This Row],[CLOSINGS]]/$B$32 -> 0.02158273381 | F16: =Table2[[#This Row],[DOLLARVOL]]/$C$32 -> 0.02550574664
A17: JENUANE COMMUNITIES ESPLANADE LLC | B17: 3 | C17: 1075724 | D17: 358574.6667 | E17: =Table2[[#This Row],[CLOSINGS]]/$B$32 -> 0.02158273381 | F17: =Table2[[#This Row],[DOLLARVOL]]/$C$32 -> 0.01388197665
A18: RANCHO HILLS BY DESERT WIND LP | B18: 3 | C18: 927848 | D18: 309282.6667 | E18: =Table2[[#This Row],[CLOSINGS]]/$B$32 -> 0.02158273381 | F18: =Table2[[#This Row],[DOLLARVOL]]/$C$32 -> 0.01197367008
A19: TOLL NORTH RENO LLC | B19: 2 | C19: 1522561 | D19: 761280.5 | E19: =Table2[[#This Row],[CLOSINGS]]/$B$32 -> 0.01438848921 | F19: =Table2[[#This Row],[DOLLARVOL]]/$C$32 -> 0.01964830779
A20: SBE 64 POINTE LLC | B20: 2 | C20: 1522471 | D20: 761235.5 | E20: =Table2[[#This Row],[CLOSINGS]]/$B$32 -> 0.01438848921 | F20: =Table2[[#This Row],[DOLLARVOL]]/$C$32 -> 0.01964714636
A21: FALCON RIDGE BY DESERT WIND LP | B21: 2 | C21: 1242970 | D21: 621485 | E21: =Table2[[#This Row],[CLOSINGS]]/$B$32 -> 0.01438848921 | F21: =Table2[[#This Row],[DOLLARVOL]]/$C$32 -> 0.01604024872
A22: NEVADA FINISH LLC | B22: 2 | C22: 801904 | D22: 400952 | E22: =Table2[[#This Row],[CLOSINGS]]/$B$32 -> 0.01438848921 | F22: =Table2[[#This Row],[DOLLARVOL]]/$C$32 -> 0.01034839104
A23: JC NV FLATS LLC | B23: 2 | C23: 558851 | D23: 279425.5 | E23: =Table2[[#This Row],[CLOSINGS]]/$B$32 -> 0.01438848921 | F23: =Table2[[#This Row],[DOLLARVOL]]/$C$32 -> 0.007211846656
A24: PARC FORET INC | B24: 1 | C24: 1761989.67 | D24: 1761989.67 | E24: =Table2[[#This Row],[CLOSINGS]]/$B$32 -> 0.007194244604 | F24: =Table2[[#This Row],[DOLLARVOL]]/$C$32 -> 0.02273808101
A25: PINE BLUFF PROPERTIES LLC | B25: 1 | C25: 1327183 | D25: 1327183 | E25: =Table2[[#This Row],[CLOSINGS]]/$B$32 -> 0.007194244604 | F25: =Table2[[#This Row],[DOLLARVOL]]/$C$32 -> 0.01712699857
A26: BATES STRINGER RENO LLC | B26: 1 | C26: 750969 | D26: 750969 | E26: =Table2[[#This Row],[CLOSINGS]]/$B$32 -> 0.007194244604 | F26: =Table2[[#This Row],[DOLLARVOL]]/$C$32 -> 0.009691086303
A27: PRESTON HOMES LLC | B27: 1 | C27: 633000 | D27: 633000 | E27: =Table2[[#This Row],[CLOSINGS]]/$B$32 -> 0.007194244604 | F27: =Table2[[#This Row],[DOLLARVOL]]/$C$32 -> 0.008168722849
A28: QUEST RENO LLC | B28: 1 | C28: 589529 | D28: 589529 | E28: =Table2[[#This Row],[CLOSINGS]]/$B$32 -> 0.007194244604 | F28: =Table2[[#This Row],[DOLLARVOL]]/$C$32 -> 0.007607739357
A29: TL BRIDLE GATE LP | B29: 1 | C29: 572183 | D29: 572183 | E29: =Table2[[#This Row],[CLOSINGS]]/$B$32 -> 0.007194244604 | F29: =Table2[[#This Row],[DOLLARVOL]]/$C$32 -> 0.007383893122
A30: RYDER SIERRA SHADOWS LLC | B30: 1 | C30: 491124 | D30: 491124 | E30: =Table2[[#This Row],[CLOSINGS]]/$B$32 -> 0.007194244604 | F30: =Table2[[#This Row],[DOLLARVOL]]/$C$32 -> 0.00633784493
A31: JENUANE COMMUNITIES NORTHRIDGE LLC | B31: 1 | C31: 387702 | D31: 387702 | E31: =Table2[[#This Row],[CLOSINGS]]/$B$32 -> 0.007194244604 | F31: =Table2[[#This Row],[DOLLARVOL]]/$C$32 -> 0.005003207245
A32: GRAND TOTAL | B32: =SUM(B5:B31) -> 139 | C32: =SUM(C5:C31) -> 77490693.67 | E32: =SUM(E5:E31) -> 1 | F32: =SUM(F5:F31) -> 1

Sheet SALES_LIST (hidden)
A1: FULLNAME | B1: RECBY | C1: BRANCH | D1: EO | E1: PROPTYPE | F1: DOCNUM | G1: AMOUNT | H1: SUB | I1: INSURED | J1: RECDATE | K1: Last Row: | L1: 710
A2: Acme Title and Escrow | B2: ACT | C2: LANDER | D2: LTE | E2: SINGLE FAM RES. | F2: 5025089 | G2: 438000 | H2: NO | I2: YES | J2: 43952
A3: Acme Title and Escrow | B3: ACT | C3: LANDER | D3: LTE | E3: SINGLE FAM RES. | F3: 5031239 | G3: 305000 | H3: NO | I3: YES | J3: 43970
A4: Acme Title and Escrow | B4: ACT | C4: LANDER | D4: YC | E4: SINGLE FAM RES. | F4: 5034071 | G4: 332000 | H4: NO | I4: YES | J4: 43979
A5: Acme Title and Escrow | B5: ACT | C5: LANDER | D5: YC | E5: MOBILE HOME | F5: 5025307 | G5: 285000 | H5: NO | I5: YES | J5: 43952
A6: Acme Title and Escrow | B6: ACT | C6: LANDER | D6: LTE | E6: SINGLE FAM RES. | F6: 5025104 | G6: 405000 | H6: NO | I6: YES | J6: 43952
A7: Acme Title and Escrow | B7: ACT | C7: LANDER | D7: UNK | E7: SINGLE FAM RES. | F7: 5029492 | G7: 60000 | H7: NO | I7: YES | J7: 43964
A8: Acme Title and Escrow | B8: ACT | C8: LANDER | D8: LTE | E8: SINGLE FAM RES. | F8: 5026108 | G8: 225000 | H8: NO | I8: YES | J8: 43956
A9: Acme Title and Escrow | B9: ACT | C9: LANDER | D9: LTE | E9: SINGLE FAM RES. | F9: 5029425 | G9: 325000 | H9: NO | I9: YES | J9: 43964
A10: Acme Title and Escrow | B10: ACT | C10: LANDER | D10: LTE | E10: SINGLE FAM RES. | F10: 5025427 | G10: 1520000 | H10: NO | I10: YES | J10: 43955
A11: Calatlantic Title West | B11: CAL | C11: MCCARRAN | D11: LH | E11: SINGLE FAM RES. | F11: 5025211 | G11: 405209 | H11: YES | I11: YES | J11: 43952
A12: Calatlantic Title West | B12: CAL | C12: MCCARRAN | D12: LH | E12: SINGLE FAM RES. | F12: 5034193 | G12: 496160 | H12: YES | I12: YES | J12: 43979
A13: Calatlantic Title West | B13: CAL | C13: MCCARRAN | D13: LH | E13: SINGLE FAM RES. | F13: 5028666 | G13: 92550 | H13: NO | I13: YES | J13: 43963
A14: Calatlantic Title West | B14: CAL | C14: MCCARRAN | D14: LH | E14: SINGLE FAM RES. | F14: 5029418 | G14: 435129 | H14: YES | I14: YES | J14: 43964
A15: Calatlantic Title West | B15: CAL | C15: MCCARRAN | D15: LH | E15: SINGLE FAM RES. | F15: 5034475 | G15: 373565 | H15: YES | I15: YES | J15: 43980
A16: Calatlantic Title West | B16: CAL | C16: MCCARRAN | D16: LH | E16: SINGLE FAM RES. | F16: 5027697 | G16: 549950 | H16: YES | I16: YES | J16: 43959
A17: Calatlantic Title West | B17: CAL | C17: MCCARRAN | D17: LH | E17: SINGLE FAM RES. | F17: 5034170 | G17: 418682 | H17: YES | I17: YES | J17: 43979
A18: Calatlantic Title West | B18: CAL | C18: MCCARRAN | D18: LH | E18: SINGLE FAM RES. | F18: 5028788 | G18: 471418 | H18: YES | I18: YES | J18: 43963
A19: Calatlantic Title West | B19: CAL | C19: MCCARRAN | D19: LH | E19: SINGLE FAM RES. | F19: 5033756 | G19: 483076 | H19: YES | I19: YES | J19: 43978
A20: Calatlantic Title West | B20: CAL | C20: MCCARRAN | D20: LH | E20: SINGLE FAM RES. | F20: 5034755 | G20: 513118 | H20: YES | I20: YES | J20: 43980
A21: Calatlantic Title West | B21: CAL | C21: MCCARRAN | D21: LH | E21: SINGLE FAM RES. | F21: 5027668 | G21: 359950 | H21: YES | I21: YES | J21: 43959
A22: Calatlantic Title West | B22: CAL | C22: MCCARRAN | D22: LH | E22: SINGLE FAM RES. | F22: 5034747 | G22: 445407 | H22: YES | I22: YES | J22: 43980
A23: Calatlantic Title West | B23: CAL | C23: MCCARRAN | D23: LH | E23: SINGLE FAM RES. | F23: 5027894 | G23: 379519 | H23: YES | I23: YES | J23: 43962
A24: Calatlantic Title West | B24: CAL | C24: MCCARRAN | D24: LH | E24: SINGLE FAM RES. | F24: 5034602 | G24: 430324 | H24: YES | I24: YES | J24: 43980
A25: Calatlantic Title West | B25: CAL | C25: MCCARRAN | D25: LH | E25: SINGLE FAM RES. | F25: 5028260 | G25: 386950 | H25: YES | I25: YES | J25: 43962
A26: Calatlantic Title West | B26: CAL | C26: MCCARRAN | D26: LH | E26: SINGLE FAM RES. | F26: 5028247 | G26: 650636 | H26: YES | I26: YES | J26: 43962
A27: Calatlantic Title West | B27: CAL | C27: MCCARRAN | D27: LH | E27: SINGLE FAM RES. | F27: 5028240 | G27: 424950 | H27: YES | I27: YES | J27: 43962
A28: Calatlantic Title West | B28: CAL | C28: MCCARRAN | D28: LH | E28: SINGLE FAM RES. | F28: 5027693 | G28: 419950 | H28: YES | I28: YES | J28: 43959
A29: Calatlantic Title West | B29: CAL | C29: MCCARRAN | D29: LH | E29: SINGLE FAM RES. | F29: 5029585 | G29: 586695 | H29: YES | I29: YES | J29: 43964
A30: Calatlantic Title West | B30: CAL | C30: MCCARRAN | D30: LH | E30: SINGLE FAM RES. | F30: 5030215 | G30: 612508 | H30: YES | I30: YES | J30: 43966
A31: Calatlantic Title West | B31: CAL | C31: MCCARRAN | D31: LH | E31: SINGLE FAM RES. | F31: 5033745 | G31: 492308 | H31: YES | I31: YES | J31: 43978
A32: Calatlantic Title West | B32: CAL | C32: MCCARRAN | D32: LH | E32: SINGLE FAM RES. | F32: 5033660 | G32: 428776 | H32: YES | I32: YES | J32: 43978
A33: Calatlantic Title West | B33: CAL | C33: MCCARRAN | D33: LH | E33: SINGLE FAM RES. | F33: 5029961 | G33: 669950 | H33: YES | I33: YES | J33: 43966
A34: Calatlantic Title West | B34: CAL | C34: MCCARRAN | D34: LH | E34: SINGLE FAM RES. | F34: 5029828 | G34: 489732 | H34: YES | I34: YES | J34: 43965
A35: Calatlantic Title West | B35: CAL | C35: MCCARRAN | D35: LH | E35: SINGLE FAM RES. | F35: 5029825 | G35: 624221 | H35: YES | I35: YES | J35: 43965
A36: Calatlantic Title West | B36: CAL | C36: MCCARRAN | D36: LH | E36: SINGLE FAM RES. | F36: 5033596 | G36: 389950 | H36: YES | I36: YES | J36: 43978
A37: Calatlantic Title West | B37: CAL | C37: MCCARRAN | D37: LH | E37: SINGLE FAM RES. | F37: 5031432 | G37: 429017 | H37: YES | I37: YES | J37: 43970
A38: Calatlantic Title West | B38: CAL | C38: MCCARRAN | D38: LH | E38: SINGLE FAM RES. | F38: 5029514 | G38: 392676 | H38: YES | I38: YES | J38: 43964
A39: Calatlantic Title West | B39: CAL | C39: MCCARRAN | D39: LH | E39: SINGLE FAM RES. | F39: 5033500 | G39: 434950 | H39: YES | I39: YES | J39: 43978
A40: Calatlantic Title West | B40: CAL | C40: MCCARRAN | D40: LH | E40: SINGLE FAM RES. | F40: 5031169 | G40: 589333 | H40: YES | I40: YES | J40: 43970
A41: Calatlantic Title West | B41: CAL | C41: MCCARRAN | D41: LH | E41: SINGLE FAM RES. | F41: 5027714 | G41: 683901 | H41: YES | I41: YES | J41: 43959
A42: Calatlantic Title West | B42: CAL | C42: MCCARRAN | D42: LH | E42: SINGLE FAM RES. | F42: 5033477 | G42: 429950 | H42: YES | I42: YES | J42: 43978
A43: Calatlantic Title West | B43: CAL | C43: MCCARRAN | D43: LH | E43: SINGLE FAM RES. | F43: 5033498 | G43: 419950 | H43: YES | I43: YES | J43: 43978
A44: DHI Title of Nevada | B44: DHI | C44: LONGLEY | D44: N/A | E44: SINGLE FAM RES. | F44: 5033313 | G44: 320290 | H44: YES | I44: YES | J44: 43977
A45: DHI Title of Nevada | B45: DHI | C45: LONGLEY | D45: N/A | E45: SINGLE FAM RES. | F45: 5032204 | G45: 307995 | H45: YES | I45: YES | J45: 43972
A46: DHI Title of Nevada | B46: DHI | C46: LONGLEY | D46: N/A | E46: SINGLE FAM RES. | F46: 5031361 | G46: 500000 | H46: YES | I46: YES | J46: 43970
A47: DHI Title of Nevada | B47: DHI | C47: LONGLEY | D47: N/A | E47: SINGLE FAM RES. | F47: 5032744 | G47: 394995 | H47: YES | I47: YES | J47: 43973
A48: DHI Title of Nevada | B48: DHI | C48: LONGLEY | D48: N/A | E48: SINGLE FAM RES. | F48: 5034501 | G48: 416413 | H48: YES | I48: YES | J48: 43980
A49: DHI Title of Nevada | B49: DHI | C49: LONGLEY | D49: N/A | E49: SINGLE FAM RES. | F49: 5031617 | G49: 439995 | H49: YES | I49: YES | J49: 43971
A50: DHI Title of Nevada | B50: DHI | C50: LONGLEY | D50: N/A | E50: SINGLE FAM RES. | F50: 5030350 | G50: 499995 | H50: YES | I50: YES | J50: 43966
A51: DHI Title of Nevada | B51: DHI | C51: LONGLEY | D51: N/A | E51: SINGLE FAM RES. | F51: 5030010 | G51: 520675 | H51: YES | I51: YES | J51: 43966
A52: DHI Title of Nevada | B52: DHI | C52: LONGLEY | D52: N/A | E52: SINGLE FAM RES. | F52: 5033340 | G52: 317995 | H52: YES | I52: YES | J52: 43977
A53: DHI Title of Nevada | B53: DHI | C53: LONGLEY | D53: N/A | E53: SINGLE FAM RES. | F53: 5025146 | G53: 364995 | H53: YES | I53: YES | J53: 43952
A54: DHI Title of Nevada | B54: DHI | C54: LONGLEY | D54: N/A | E54: SINGLE FAM RES. | F54: 5034817 | G54: 549995 | H54: YES | I54: YES | J54: 43980
A55: DHI Title of Nevada | B55: DHI | C55: LONGLEY | D55: N/A | E55: SINGLE FAM RES. | F55: 5033606 | G55: 574995 | H55: YES | I55: YES | J55: 43978
A56: DHI Title of Nevada | B56: DHI | C56: LONGLEY | D56: N/A | E56: SINGLE FAM RES. | F56: 5033315 | G56: 300290 | H56: YES | I56: YES | J56: 43977
A57: DHI Title of Nevada | B57: DHI | C57: LONGLEY | D57: N/A | E57: SINGLE FAM RES. | F57: 5027625 | G57: 399995 | H57: YES | I57: YES | J57: 43959
A58: DHI Title of Nevada | B58: DHI | C58: LONGLEY | D58: N/A | E58: SINGLE FAM RES. | F58: 5033326 | G58: 310290 | H58: YES | I58: YES | J58: 43977
A59: DHI Title of Nevada | B59: DHI | C59: LONGLEY | D59: N/A | E59: SINGLE FAM RES. | F59: 5032032 | G59: 531292 | H59: YES | I59: YES | J59: 43972
A60: DHI Title of Nevada | B60: DHI | C60: LONGLEY | D60: N/A | E60: SINGLE FAM RES. | F60: 5033585 | G60: 499995 | H60: YES | I60: YES | J60: 43978
A61: First American Title | B61: FA | C61: KIETZKE | D61: KS | E61: SINGLE FAM RES. | F61: 5033431 | G61: 315000 | H61: NO | I61: YES | J61: 43978
A62: First American Title | B62: FA | C62: INCLINE | D62: VD | E62: SINGLE FAM RES. | F62: 5027892 | G62: 2775000 | H62: NO | I62: YES | J62: 43962
A63: First American Title | B63: FA | C63: INCLINE | D63: VD | E63: CONDO/TWNHSE | F63: 5033417 | G63: 825000 | H63: NO | I63: YES | J63: 43978
A64: First American Title | B64: FA | C64: INCLINE | D64: VD | E64: CONDO/TWNHSE | F64: 5027911 | G64: 620000 | H64: NO | I64: YES | J64: 43962
A65: First American Title | B65: FA | C65: SPARKS | D65: JP | E65: SINGLE FAM RES. | F65: 5033147 | G65: 572183 | H65: YES | I65: YES | J65: 43977
A66: First American Title | B66: FA | C66: SPARKS | D66: CY | E66: CONDO/TWNHSE | F66: 5034614 | G66: 315000 | H66: NO | I66: YES | J66: 43980
A67: First American Title | B67: FA | C67: INCLINE | D67: VD | E67: CONDO/TWNHSE | F67: 5033748 | G67: 640000 | H67: NO | I67: YES | J67: 43978
A68: First American Title | B68: FA | C68: KIETZKE | D68: KS | E68: MOBILE HOME | F68: 5027783 | G68: 260000 | H68: NO | I68: YES | J68: 43959
A69: First American Title | B69: FA | C69: KIETZKE | D69: TK | E69: CONDO/TWNHSE | F69: 5030555 | G69: 270000 | H69: NO | I69: YES | J69: 43969
A70: First American Title | B70: FA | C70: KIETZKE | D70: TK | E70: SINGLE FAM RES. | F70: 5029943 | G70: 438000 | H70: NO | I70: YES | J70: 43966
A71: First American Title | B71: FA | C71: KIETZKE | D71: TK | E71: SINGLE FAM RES. | F71: 5026970 | G71: 520000 | H71: NO | I71: YES | J71: 43958
A72: First American Title | B72: FA | C72: KIETZKE | D72: MLR | E72: COMM'L/IND'L | F72: 5031294 | G72: 3000000 | H72: NO | I72: YES | J72: 43970
A73: First American Title | B73: FA | C73: SPARKS | D73: CY | E73: SINGLE FAM RES. | F73: 5031180 | G73: 397731 | H73: YES | I73: YES | J73: 43970
A74: First American Title | B74: FA | C74: SPARKS | D74: CY | E74: SINGLE FAM RES. | F74: 5031133 | G74: 428158 | H74: YES | I74: YES | J74: 43970
A75: First American Title | B75: FA | C75: KIETZKE | D75: KS | E75: SINGLE FAM RES. | F75: 5031646 | G75: 625000 | H75: NO | I75: YES | J75: 43971
A76: First American Title | B76: FA | C76: KIETZKE | D76: MLR | E76: VACANT LAND | F76: 5029748 | G76: 1400000 | H76: NO | I76: YES | J76: 43965
A77: First American Title | B77: FA | C77: INCLINE | D77: VD | E77: CONDO/TWNHSE | F77: 5031981 | G77: 925000 | H77: NO | I77: YES | J77: 43972
A78: First American Title | B78: FA | C78: SPARKS | D78: CY | E78: SINGLE FAM RES. | F78: 5030361 | G78: 370000 | H78: NO | I78: YES | J78: 43966
A79: First American Title | B79: FA | C79: KIETZKE | D79: TK | E79: SINGLE FAM RES. | F79: 5025594 | G79: 339000 | H79: NO | I79: YES | J79: 43955
A80: First American Title | B80: FA | C80: KIETZKE | D80: MH | E80: SINGLE FAM RES. | F80: 5030137 | G80: 300000 | H80: NO | I80: YES | J80: 43966
A81: First American Title | B81: FA | C81: KIETZKE | D81: MLR | E81: SINGLE FAM RES. | F81: 5030262 | G81: 420000 | H81: NO | I81: YES | J81: 43966
A82: First American Title | B82: FA | C82: KIETZKE | D82: TK | E82: SINGLE FAM RES. | F82: 5030217 | G82: 380000 | H82: NO | I82: YES | J82: 43966
A83: First American Title | B83: FA | C83: LAS VEGAS | D83: NCS | E83: COMM'L/IND'L | F83: 5025719 | G83: 1150000 | H83: NO | I83: YES | J83: 43956
A84: First American Title | B84: FA | C84: KIETZKE | D84: KS | E84: SINGLE FAM RES. | F84: 5030995 | G84: 485000 | H84: NO | I84: YES | J84: 43970
A85: First American Title | B85: FA | C85: SPARKS | D85: CY | E85: SINGLE FAM RES. | F85: 5032523 | G85: 373039 | H85: YES | I85: YES | J85: 43973
A86: First American Title | B86: FA | C86: KIETZKE | D86: MH | E86: SINGLE FAM RES. | F86: 5032855 | G86: 515000 | H86: NO | I86: YES | J86: 43977
A87: First American Title | B87: FA | C87: SPARKS | D87: JP | E87: SINGLE FAM RES. | F87: 5026381 | G87: 589980 | H87: NO | I87: YES | J87: 43956
A88: First American Title | B88: FA | C88: KIETZKE | D88: TK | E88: SINGLE FAM RES. | F88: 5026347 | G88: 265000 | H88: NO | I88: YES | J88: 43956
A89: First American Title | B89: FA | C89: KIETZKE | D89: MH | E89: SINGLE FAM RES. | F89: 5026319 | G89: 420000 | H89: NO | I89: YES | J89: 43956
A90: First American Title | B90: FA | C90: KIETZKE | D90: MLR | E90: SINGLE FAM RES. | F90: 5029848 | G90: 1761989.67 | H90: YES | I90: YES | J90: 43965
A91: First American Title | B91: FA | C91: KIETZKE | D91: TK | E91: SINGLE FAM RES. | F91: 5025270 | G91: 602000 | H91: NO | I91: YES | J91: 43952
A92: First American Title | B92: FA | C92: SPARKS | D92: CY | E92: SINGLE FAM RES. | F92: 5030077 | G92: 460360 | H92: YES | I92: YES | J92: 43966
A93: First American Title | B93: FA | C93: KIETZKE | D93: MH | E93: SINGLE FAM RES. | F93: 5028231 | G93: 617500 | H93: NO | I93: YES | J93: 43962
A94: First American Title | B94: FA | C94: HENDERSON | D94: TO | E94: SINGLE FAM RES. | F94: 5028802 | G94: 189000 | H94: NO | I94: YES | J94: 43963
A95: First American Title | B95: FA | C95: SPARKS | D95: CY | E95: VACANT LAND | F95: 5032406 | G95: 95000 | H95: NO | I95: YES | J95: 43973
A96: First American Title | B96: FA | C96: INCLINE | D96: VD | E96: SINGLE FAM RES. | F96: 5032397 | G96: 2950000 | H96: NO | I96: YES | J96: 43973
A97: First American Title | B97: FA | C97: INCLINE | D97: VD | E97: SINGLE FAM RES. | F97: 5028873 | G97: 1400000 | H97: NO | I97: YES | J97: 43963
A98: First American Title | B98: FA | C98: LAS VEGAS | D98: LM | E98: SINGLE FAM RES. | F98: 5028923 | G98: 400000 | H98: NO | I98: YES | J98: 43963
A99: First American Title | B99: FA | C99: SPARKS | D99: CY | E99: SINGLE FAM RES. | F99: 5025951 | G99: 396706 | H99: YES | I99: YES | J99: 43956
A100: First American Title | B100: FA | C100: INCLINE | D100: VD | E100: CONDO/TWNHSE | F100: 5025110 | G100: 1700000 | H100: NO | I100: YES | J100: 43952
A101: First American Title | B101: FA | C101: KIETZKE | D101: KS | E101: SINGLE FAM RES. | F101: 5027414 | G101: 821000 | H101: NO | I101: YES | J101: 43959
A102: First American Title | B102: FA | C102: KIETZKE | D102: KS | E102: SINGLE FAM RES. | F102: 5027500 | G102: 414900 | H102: NO | I102: YES | J102: 43959
A103: First American Title | B103: FA | C103: KIETZKE | D103: TK | E103: SINGLE FAM RES. | F103: 5034732 | G103: 338000 | H103: NO | I103: YES | J103: 43980
A104: First American Title | B104: FA | C104: SPARKS | D104: JP | E104: SINGLE FAM RES. | F104: 5026872 | G104: 400000 | H104: NO | I104: YES | J104: 43957
A105: First American Title | B105: FA | C105: KIETZKE | D105: MLR | E105: SINGLE FAM RES. | F105: 5027106 | G105: 515000 | H105: NO | I105: YES | J105: 43958
A106: First American Title | B106: FA | C106: INCLINE | D106: VD | E106: CONDO/TWNHSE | F106: 5034084 | G106: 1462500 | H106: NO | I106: YES | J106: 43979
A107: First American Title | B107: FA | C107: INCLINE | D107: VD | E107: CONDO/TWNHSE | F107: 5034128 | G107: 830000 | H107: NO | I107: YES | J107: 43979
A108: First American Title | B108: FA | C108: SPARKS | D108: CY | E108: SINGLE FAM RES. | F108: 5027362 | G108: 392000 | H108: NO | I108: YES | J108: 43959
A109: First American Title | B109: FA | C109: KIETZKE | D109: MH | E109: SINGLE FAM RES. | F109: 5027392 | G109: 375000 | H109: NO | I109: YES | J109: 43959
A110: First American Title | B110: FA | C110: KIETZKE | D110: TK | E110: SINGLE FAM RES. | F110: 5027610 | G110: 350000 | H110: NO | I110: YES | J110: 43959
A111: First American Title | B111: FA | C111: KIETZKE | D111: KS | E111: CONDO/TWNHSE | F111: 5027590 | G111: 270000 | H111: NO | I111: YES | J111: 43959
A112: First American Title | B112: FA | C112: KIETZKE | D112: TK | E112: SINGLE FAM RES. | F112: 5034655 | G112: 265000 | H112: NO | I112: YES | J112: 43980
A113: First Centennial Title | B113: FC | C113: RIDGEVIEW | D113: 15 | E113: SINGLE FAM RES. | F113: 5031644 | G113: 400000 | H113: NO | I113: YES | J113: 43971
A114: First Centennial Title | B114: FC | C114: DAMONTE | D114: 24 | E114: SINGLE FAM RES. | F114: 5031558 | G114: 310000 | H114: NO | I114: YES | J114: 43971
A115: First Centennial Title | B115: FC | C115: RIDGEVIEW | D115: 9 | E115: SINGLE FAM RES. | F115: 5027325 | G115: 1335000 | H115: NO | I115: YES | J115: 43959
A116: First Centennial Title | B116: FC | C116: RIDGEVIEW | D116: 9 | E116: SINGLE FAM RES. | F116: 5034351 | G116: 750000 | H116: NO | I116: YES | J116: 43979
A117: First Centennial Title | B117: FC | C117: LAKESIDEMOANA | D117: 12 | E117: SINGLE FAM RES. | F117: 5030122 | G117: 381000 | H117: NO | I117: YES | J117: 43966
A118: First Centennial Title | B118: FC | C118: SPARKS | D118: 21 | E118: SINGLE FAM RES. | F118: 5034842 | G118: 375000 | H118: NO | I118: YES | J118: 43980
A119: First Centennial Title | B119: FC | C119: RIDGEVIEW | D119: 20 | E119: VACANT LAND | F119: 5025784 | G119: 33969.84 | H119: NO | I119: YES | J119: 43956
A120: First Centennial Title | B120: FC | C120: RIDGEVIEW | D120: 10 | E120: SINGLE FAM RES. | F120: 5025189 | G120: 375000 | H120: NO | I120: YES | J120: 43952
A121: First Centennial Title | B121: FC | C121: DAMONTE | D121: 24 | E121: SINGLE FAM RES. | F121: 5026854 | G121: 372000 | H121: NO | I121: YES | J121: 43957
A122: First Centennial Title | B122: FC | C122: RIDGEVIEW | D122: 9 | E122: CONDO/TWNHSE | F122: 5029481 | G122: 146000 | H122: NO | I122: YES | J122: 43964
A123: First Centennial Title | B123: FC | C123: DAMONTE | D123: 24 | E123: SINGLE FAM RES. | F123: 5025325 | G123: 489000 | H123: NO | I123: YES | J123: 43952
A124: First Centennial Title | B124: FC | C124: INCLINE | D124: 25 | E124: VACANT LAND | F124: 5027223 | G124: 147500 | H124: NO | I124: YES | J124: 43958
A125: First Centennial Title | B125: FC | C125: DAMONTE | D125: 24 | E125: SINGLE FAM RES. | F125: 5029927 | G125: 379500 | H125: NO | I125: YES | J125: 43966
A126: First Centennial Title | B126: FC | C126: RIDGEVIEW | D126: 9 | E126: 2-4 PLEX | F126: 5029489 | G126: 440000 | H126: NO | I126: YES | J126: 43964
A127: First Centennial Title | B127: FC | C127: SPARKS | D127: 21 | E127: SINGLE FAM RES. | F127: 5029484 | G127: 491124 | H127: YES | I127: YES | J127: 43964
A128: First Centennial Title | B128: FC | C128: SPARKS | D128: 21 | E128: SINGLE FAM RES. | F128: 5031290 | G128: 279000 | H128: NO | I128: YES | J128: 43970
A129: First Centennial Title | B129: FC | C129: SPARKS | D129: 21 | E129: SINGLE FAM RES. | F129: 5031392 | G129: 605000 | H129: NO | I129: YES | J129: 43970
A130: First Centennial Title | B130: FC | C130: SPARKS | D130: 21 | E130: SINGLE FAM RES. | F130: 5031306 | G130: 298000 | H130: NO | I130: YES | J130: 43970
A131: First Centennial Title | B131: FC | C131: SPARKS | D131: 21 | E131: SINGLE FAM RES. | F131: 5031397 | G131: 489073 | H131: YES | I131: YES | J131: 43970
A132: First Centennial Title | B132: FC | C132: RIDGEVIEW | D132: 9 | E132: CONDO/TWNHSE | F132: 5029478 | G132: 185000 | H132: NO | I132: YES | J132: 43964
A133: First Centennial Title | B133: FC | C133: RIDGEVIEW | D133: 10 | E133: SINGLE FAM RES. | F133: 5031355 | G133: 724000 | H133: NO | I133: YES | J133: 43970
A134: First Centennial Title | B134: FC | C134: RIDGEVIEW | D134: 9 | E134: SINGLE FAM RES. | F134: 5034855 | G134: 275000 | H134: NO | I134: YES | J134: 43980
A135: First Centennial Title | B135: FC | C135: RIDGEVIEW | D135: 10 | E135: SINGLE FAM RES. | F135: 5034850 | G135: 385000 | H135: NO | I135: YES | J135: 43980
A136: First Centennial Title | B136: FC | C136: RIDGEVIEW | D136: 20 | E136: SINGLE FAM RES. | F136: 5025783 | G136: 696960 | H136: NO | I136: YES | J136: 43956
A137: First Centennial Title | B137: FC | C137: RIDGEVIEW | D137: 10 | E137: SINGLE FAM RES. | F137: 5031716 | G137: 529000 | H137: NO | I137: YES | J137: 43971
A138: First Centennial Title | B138: FC | C138: RIDGEVIEW | D138: 9 | E138: SINGLE FAM RES. | F138: 5030303 | G138: 675000 | H138: NO | I138: YES | J138: 43966
A139: First Centennial Title | B139: FC | C139: LAKESIDE | D139: 5 | E139: SINGLE FAM RES. | F139: 5026859 | G139: 340000 | H139: NO | I139: YES | J139: 43957
A140: First Centennial Title | B140: FC | C140: DAMONTE | D140: 24 | E140: SINGLE FAM RES. | F140: 5027390 | G140: 635000 | H140: NO | I140: YES | J140: 43959
A141: First Centennial Title | B141: FC | C141: SPARKS | D141: 21 | E141: SINGLE FAM RES. | F141: 5031711 | G141: 430000 | H141: NO | I141: YES | J141: 43971
A142: First Centennial Title | B142: FC | C142: DAMONTE | D142: 24 | E142: SINGLE FAM RES. | F142: 5031985 | G142: 632000 | H142: NO | I142: YES | J142: 43972
A143: First Centennial Title | B143: FC | C143: DAMONTE | D143: 24 | E143: SINGLE FAM RES. | F143: 5025160 | G143: 300000 | H143: NO | I143: YES | J143: 43952
A144: First Centennial Title | B144: FC | C144: LAKESIDEMOANA | D144: 12 | E144: SINGLE FAM RES. | F144: 5030110 | G144: 505000 | H144: NO | I144: YES | J144: 43966
A145: First Centennial Title | B145: FC | C145: RIDGEVIEW | D145: 2 | E145: CONDO/TWNHSE | F145: 5031996 | G145: 635000 | H145: NO | I145: YES | J145: 43972
A146: First Centennial Title | B146: FC | C146: RIDGEVIEW | D146: 15 | E146: SINGLE FAM RES. | F146: 5025173 | G146: 384000 | H146: NO | I146: YES | J146: 43952
A147: First Centennial Title | B147: FC | C147: SPARKS | D147: 21 | E147: SINGLE FAM RES. | F147: 5032006 | G147: 320000 | H147: NO | I147: YES | J147: 43972
A148: First Centennial Title | B148: FC | C148: RIDGEVIEW | D148: 20 | E148: COMM'L/IND'L | F148: 5025785 | G148: 747489.6 | H148: NO | I148: YES | J148: 43956
A149: First Centennial Title | B149: FC | C149: SPARKS | D149: 21 | E149: SINGLE FAM RES. | F149: 5032088 | G149: 332900 | H149: NO | I149: YES | J149: 43972
A150: First Centennial Title | B150: FC | C150: RIDGEVIEW | D150: 10 | E150: SINGLE FAM RES. | F150: 5025984 | G150: 594000 | H150: NO | I150: YES | J150: 43956
A151: First Centennial Title | B151: FC | C151: SPARKS | D151: 21 | E151: SINGLE FAM RES. | F151: 5028907 | G151: 437520 | H151: YES | I151: YES | J151: 43963
A152: First Centennial Title | B152: FC | C152: INCLINE | D152: 25 | E152: CONDO/TWNHSE | F152: 5026054 | G152: 742500 | H152: NO | I152: YES | J152: 43956
A153: First Centennial Title | B153: FC | C153: SPARKS | D153: 21 | E153: SINGLE FAM RES. | F153: 5032656 | G153: 450000 | H153: NO | I153: YES | J153: 43973
A154: First Centennial Title | B154: FC | C154: RIDGEVIEW | D154: 20 | E154: SINGLE FAM RES. | F154: 5032154 | G154: 387702 | H154: YES | I154: YES | J154: 43972
A155: First Centennial Title | B155: FC | C155: LAKESIDE | D155: 5 | E155: SINGLE FAM RES. | F155: 5034826 | G155: 374900 | H155: NO | I155: YES | J155: 43980
A156: First Centennial Title | B156: FC | C156: LAKESIDE | D156: 5 | E156: SINGLE FAM RES. | F156: 5031811 | G156: 378000 | H156: NO | I156: YES | J156: 43971
A157: First Centennial Title | B157: FC | C157: SPARKS | D157: 21 | E157: SINGLE FAM RES. | F157: 5031713 | G157: 295000 | H157: NO | I157: YES | J157: 43971
A158: First Centennial Title | B158: FC | C158: RIDGEVIEW | D158: 10 | E158: SINGLE FAM RES. | F158: 5034881 | G158: 345000 | H158: NO | I158: YES | J158: 43980
A159: First Centennial Title | B159: FC | C159: RIDGEVIEW | D159: 9 | E159: SINGLE FAM RES. | F159: 5025176 | G159: 445000 | H159: NO | I159: YES | J159: 43952
A160: First Centennial Title | B160: FC | C160: RIDGEVIEW | D160: 10 | E160: SINGLE FAM RES. | F160: 5031758 | G160: 422500 | H160: NO | I160: YES | J160: 43971
A161: First Centennial Title | B161: FC | C161: RIDGEVIEW | D161: 9 | E161: SINGLE FAM RES. | F161: 5031762 | G161: 230300 | H161: NO | I161: YES | J161: 43971
A162: First Centennial Title | B162: FC | C162: DAMONTE | D162: 24 | E162: COMM'L/IND'L | F162: 5034360 | G162: 210000 | H162: NO | I162: YES | J162: 43979
A163: First Centennial Title | B163: FC | C163: RIDGEVIEW | D163: 9 | E163: SINGLE FAM RES. | F163: 5031795 | G163: 450000 | H163: NO | I163: YES | J163: 43971
A164: First Centennial Title | B164: FC | C164: SPARKS | D164: 21 | E164: SINGLE FAM RES. | F164: 5029444 | G164: 670000 | H164: NO | I164: YES | J164: 43964
A165: First Centennial Title | B165: FC | C165: DAMONTE | D165: 24 | E165: SINGLE FAM RES. | F165: 5029443 | G165: 512000 | H165: NO | I165: YES | J165: 43964
A166: First Centennial Title | B166: FC | C166: LAKESIDE | D166: 5 | E166: SINGLE FAM RES. | F166: 5031827 | G166: 452500 | H166: NO | I166: YES | J166: 43971
A167: First Centennial Title | B167: FC | C167: RIDGEVIEW | D167: 20 | E167: SINGLE FAM RES. | F167: 5034838 | G167: 316990 | H167: YES | I167: YES | J167: 43980
A168: First Centennial Title | B168: FC | C168: RIDGEVIEW | D168: 20 | E168: CONDO/TWNHSE | F168: 5034832 | G168: 335000 | H168: NO | I168: YES | J168: 43980
A169: First Centennial Title | B169: FC | C169: LAKESIDE | D169: 5 | E169: SINGLE FAM RES. | F169: 5031879 | G169: 389000 | H169: NO | I169: YES | J169: 43971
A170: First Centennial Title | B170: FC | C170: LAKESIDEMOANA | D170: 12 | E170: VACANT LAND | F170: 5031883 | G170: 65000 | H170: NO | I170: YES | J170: 43971
A171: First Centennial Title | B171: FC | C171: RIDGEVIEW | D171: 9 | E171: SINGLE FAM RES. | F171: 5031772 | G171: 485000 | H171: NO | I171: YES | J171: 43971
A172: First Centennial Title | B172: FC | C172: RIDGEVIEW | D172: 9 | E172: MOBILE HOME | F172: 5029821 | G172: 286500 | H172: NO | I172: YES | J172: 43965
A173: First Centennial Title | B173: FC | C173: LAKESIDE | D173: 5 | E173: CONDO/TWNHSE | F173: 5027030 | G173: 255000 | H173: NO | I173: YES | J173: 43958
A174: First Centennial Title | B174: FC | C174: LAKESIDE | D174: 5 | E174: SINGLE FAM RES. | F174: 5034944 | G174: 372900 | H174: NO | I174: YES | J174: 43980
A175: First Centennial Title | B175: FC | C175: RIDGEVIEW | D175: 15 | E175: SINGLE FAM RES. | F175: 5034940 | G175: 589529 | H175: YES | I175: YES | J175: 43980
A176: First Centennial Title | B176: FC | C176: DAMONTE | D176: 24 | E176: SINGLE FAM RES. | F176: 5034936 | G176: 400000 | H176: NO | I176: YES | J176: 43980
A177: First Centennial Title | B177: FC | C177: LAKESIDE | D177: 5 | E177: CONDO/TWNHSE | F177: 5030325 | G177: 195000 | H177: NO | I177: YES | J177: 43966
A178: First Centennial Title | B178: FC | C178: LAKESIDEMOANA | D178: 12 | E178: SINGLE FAM RES. | F178: 5029752 | G178: 294000 | H178: NO | I178: YES | J178: 43965
A179: First Centennial Title | B179: FC | C179: LAKESIDEMOANA | D179: 12 | E179: COMM'L/IND'L | F179: 5030340 | G179: 381000 | H179: NO | I179: YES | J179: 43966
A180: First Centennial Title | B180: FC | C180: LAKESIDE | D180: 5 | E180: SINGLE FAM RES. | F180: 5030283 | G180: 240000 | H180: NO | I180: YES | J180: 43966
A181: First Centennial Title | B181: FC | C181: RIDGEVIEW | D181: 9 | E181: SINGLE FAM RES. | F181: 5034328 | G181: 445000 | H181: NO | I181: YES | J181: 43979
A182: First Centennial Title | B182: FC | C182: SPARKS | D182: 21 | E182: SINGLE FAM RES. | F182: 5029786 | G182: 339000 | H182: NO | I182: YES | J182: 43965
A183: First Centennial Title | B183: FC | C183: DAMONTE | D183: 24 | E183: MOBILE HOME | F183: 5034928 | G183: 241500 | H183: NO | I183: YES | J183: 43980
A184: First Centennial Title | B184: FC | C184: RIDGEVIEW | D184: 11 | E184: SINGLE FAM RES. | F184: 5025533 | G184: 300000 | H184: NO | I184: YES | J184: 43955
A185: First Centennial Title | B185: FC | C185: LAKESIDE | D185: 5 | E185: CONDO/TWNHSE | F185: 5029769 | G185: 125000 | H185: NO | I185: YES | J185: 43965
A186: First Centennial Title | B186: FC | C186: SPARKS | D186: 21 | E186: SINGLE FAM RES. | F186: 5034877 | G186: 365000 | H186: NO | I186: YES | J186: 43980
A187: First Centennial Title | B187: FC | C187: LAKESIDE | D187: 5 | E187: SINGLE FAM RES. | F187: 5030335 | G187: 470000 | H187: NO | I187: YES | J187: 43966
A188: First Centennial Title | B188: FC | C188: RIDGEVIEW | D188: 20 | E188: SINGLE FAM RES. | F188: 5030226 | G188: 700000 | H188: NO | I188: YES | J188: 43966
A189: First Centennial Title | B189: FC | C189: LAKESIDE | D189: 5 | E189: SINGLE FAM RES. | F189: 5030151 | G189: 475000 | H189: NO | I189: YES | J189: 43966
A190: First Centennial Title | B190: FC | C190: SPARKS | D190: 21 | E190: SINGLE FAM RES. | F190: 5034992 | G190: 575000 | H190: YES | I190: YES | J190: 43980
A191: First Centennial Title | B191: FC | C191: CARSON CITY | D191: 23 | E191: SINGLE FAM RES. | F191: 5030171 | G191: 470000 | H191: NO | I191: YES | J191: 43966
A192: First Centennial Title | B192: FC | C192: LAKESIDEMOANA | D192: 12 | E192: SINGLE FAM RES. | F192: 5030177 | G192: 438000 | H192: NO | I192: YES | J192: 43966
A193: First Centennial Title | B193: FC | C193: RIDGEVIEW | D193: 20 | E193: MOBILE HOME | F193: 5025643 | G193: 258000 | H193: NO | I193: YES | J193: 43955
A194: First Centennial Title | B194: FC | C194: LAKESIDEMOANA | D194: 12 | E194: SINGLE FAM RES. | F194: 5034986 | G194: 485000 | H194: NO | I194: YES | J194: 43980
A195: First Centennial Title | B195: FC | C195: SPARKS | D195: 21 | E195: SINGLE FAM RES. | F195: 5030291 | G195: 499900 | H195: NO | I195: YES | J195: 43966
A196: First Centennial Title | B196: FC | C196: LAKESIDE | D196: 5 | E196: SINGLE FAM RES. | F196: 5025640 | G196: 375000 | H196: NO | I196: YES | J196: 43955
A197: First Centennial Title | B197: FC | C197: RIDGEVIEW | D197: 11 | E197: SINGLE FAM RES. | F197: 5030287 | G197: 560000 | H197: NO | I197: YES | J197: 43966
A198: First Centennial Title | B198: FC | C198: LAKESIDEMOANA | D198: 12 | E198: CONDO/TWNHSE | F198: 5030236 | G198: 260000 | H198: NO | I198: YES | J198: 43966
A199: First Centennial Title | B199: FC | C199: LAKESIDEMOANA | D199: 12 | E199: VACANT LAND | F199: 5030140 | G199: 39000 | H199: NO | I199: YES | J199: 43966
A200: First Centennial Title | B200: FC | C200: SPARKS | D200: 21 | E200: MOBILE HOME | F200: 5030259 | G200: 130000 | H200: NO | I200: YES | J200: 43966
... 510 more rows

Sheet LOANS_LIST (hidden)
A1: FULLNAME | B1: RECBY | C1: TYPELOAN | D1: APN | E1: DOCNUM | F1: AMOUNT | G1: RECDATE | H1: LENDER | L1: 1126
A2: Acme Title and Escrow | B2: ACT | C2: CONVENTIONAL | D2: 019-133-05 | E2: 5033151 | F2: 385700 | G2: 43977 | H2: ON Q FINANCIAL INC
A3: Acme Title and Escrow | B3: ACT | C3: CONVENTIONAL | D3: 009-721-03 | E3: 5025447 | F3: 370000 | G3: 43955 | H3: MUTUAL OF OMAHA MORTGAGE INC
A4: Acme Title and Escrow | B4: ACT | C4: CONVENTIONAL | D4: 554-253-14 | E4: 5028010 | F4: 160000 | G4: 43962 | H4: GUILD MORTGAGE COMPANY
A5: Acme Title and Escrow | B5: ACT | C5: CONVENTIONAL | D5: 033-262-02 | E5: 5033213 | F5: 196000 | G5: 43977 | H5: NEW AMERICAN FUNDING
A6: Acme Title and Escrow | B6: ACT | C6: CONVENTIONAL | D6: 019-443-07 | E6: 5032453 | F6: 130000 | G6: 43973 | H6: CALIBER HOME LOANS INC
A7: Acme Title and Escrow | B7: ACT | C7: CONVENTIONAL | D7: 570-022-45 | E7: 5028823 | F7: 301000 | G7: 43963 | H7: ONETRUST HOME LOANS
A8: Acme Title and Escrow | B8: ACT | C8: CONVENTIONAL | D8: 160-162-03 | E8: 5033191 | F8: 297500 | G8: 43977 | H8: NEW AMERICAN FUNDING
A9: Acme Title and Escrow | B9: ACT | C9: CONVENTIONAL | D9: 165-094-16 | E9: 5033190 | F9: 387000 | G9: 43977 | H9: CALIBER HOME LOANS INC
A10: Acme Title and Escrow | B10: ACT | C10: CONVENTIONAL | D10: 001-122-09 | E10: 5028131 | F10: 326000 | G10: 43962 | H10: GREATER NEVADA MORTGAGE
A11: Acme Title and Escrow | B11: ACT | C11: CONVENTIONAL | D11: 528-144-01 | E11: 5034625 | F11: 362800 | G11: 43980 | H11: GUILD MORTGAGE COMPANY
A12: Acme Title and Escrow | B12: ACT | C12: CONVENTIONAL | D12: 009-693-07 | E12: 5033706 | F12: 230000 | G12: 43978 | H12: ONETRUST HOME LOANS
A13: Acme Title and Escrow | B13: ACT | C13: VA | D13: 015-312-16 | E13: 5034524 | F13: 171422 | G13: 43980 | H13: PRIMELENDING
A14: Acme Title and Escrow | B14: ACT | C14: CONVENTIONAL | D14: 516-124-01 | E14: 5030033 | F14: 199000 | G14: 43966 | H14: CALIBER HOME LOANS INC
A15: Acme Title and Escrow | B15: ACT | C15: CONVENTIONAL | D15: 036-111-22 | E15: 5033902 | F15: 192800 | G15: 43979 | H15: ON Q FINANCIAL INC
A16: Acme Title and Escrow | B16: ACT | C16: CONVENTIONAL | D16: 031-371-23 | E16: 5030055 | F16: 280000 | G16: 43966 | H16: CALIBER HOME LOANS INC
A17: Acme Title and Escrow | B17: ACT | C17: CONVENTIONAL | D17: 036-373-19 | E17: 5026824 | F17: 144000 | G17: 43957 | H17: AMERICAN PACIFIC MORTGAGE CORPORATION
A18: Acme Title and Escrow | B18: ACT | C18: CONVENTIONAL | D18: 045-342-01 | E18: 5030046 | F18: 361000 | G18: 43966 | H18: INSPIRE HOME LOANS INC
A19: Acme Title and Escrow | B19: ACT | C19: CONVENTIONAL | D19: 141-472-07 | E19: 5028675 | F19: 450000 | G19: 43963 | H19: BAY EQUITY LLC
A20: Acme Title and Escrow | B20: ACT | C20: CONVENTIONAL | D20: 140-332-01 | E20: 5026822 | F20: 409000 | G20: 43957 | H20: CALIBER HOME LOANS INC
A21: Acme Title and Escrow | B21: ACT | C21: CONVENTIONAL | D21: 554-243-26 | E21: 5033474 | F21: 260000 | G21: 43978 | H21: CALIBER HOME LOANS INC
A22: Acme Title and Escrow | B22: ACT | C22: FHA | D22: 200-163-02 | E22: 5032026 | F22: 273504 | G22: 43972 | H22: ONETRUST HOME LOANS
A23: Acme Title and Escrow | B23: ACT | C23: CONVENTIONAL | D23: 043-214-22 | E23: 5026931 | F23: 210000 | G23: 43958 | H23: BAY EQUITY LLC
A24: Acme Title and Escrow | B24: ACT | C24: CONVENTIONAL | D24: 520-220-28 | E24: 5033907 | F24: 276000 | G24: 43979 | H24: PRIMELENDING
A25: Acme Title and Escrow | B25: ACT | C25: CONVENTIONAL | D25: 001-312-03 | E25: 5029505 | F25: 155000 | G25: 43964 | H25: ONETRUST HOME LOANS
A26: Acme Title and Escrow | B26: ACT | C26: CONVENTIONAL | D26: 082-354-03 | E26: 5025170 | F26: 201000 | G26: 43952 | H26: CALIBER HOME LOANS INC
A27: Acme Title and Escrow | B27: ACT | C27: FHA | D27: 086-746-02 | E27: 5030123 | F27: 232937 | G27: 43966 | H27: GUILD MORTGAGE COMPANY
A28: Acme Title and Escrow | B28: ACT | C28: CONVENTIONAL | D28: 086-783-03 | E28: 5030710 | F28: 168500 | G28: 43969 | H28: CALIBER HOME LOANS INC
A29: Acme Title and Escrow | B29: ACT | C29: CONVENTIONAL | D29: 026-662-02 | E29: 5033887 | F29: 185000 | G29: 43979 | H29: WELLS FARGO BANK NA
A30: Acme Title and Escrow | B30: ACT | C30: CONVENTIONAL | D30: 011-283-11 | E30: 5028203 | F30: 255000 | G30: 43962 | H30: NEW AMERICAN FUNDING
A31: Acme Title and Escrow | B31: ACT | C31: CONVENTIONAL | D31: 045-310-88 | E31: 5029162 | F31: 458400 | G31: 43964 | H31: NEW AMERICAN FUNDING
A32: Acme Title and Escrow | B32: ACT | C32: CONVENTIONAL | D32: 042-314-12 | E32: 5033462 | F32: 285000 | G32: 43978 | H32: BAY EQUITY LLC
A33: Acme Title and Escrow | B33: ACT | C33: VA | D33: 530-843-04 | E33: 5033656 | F33: 307278 | G33: 43978 | H33: NEW AMERICAN FUNDING
A34: Acme Title and Escrow | B34: ACT | C34: CONVENTIONAL | D34: 514-451-08 | E34: 5029465 | F34: 200000 | G34: 43964 | H34: NEW AMERICAN FUNDING
A35: Acme Title and Escrow | B35: ACT | C35: CONVENTIONAL | D35: 001-361-09 | E35: 5026456 | F35: 262000 | G35: 43957 | H35: BAY EQUITY LLC
A36: Acme Title and Escrow | B36: ACT | C36: VA | D36: 002-484-23 | E36: 5029401 | F36: 303332 | G36: 43964 | H36: GUILD MORTGAGE COMPANY
A37: Acme Title and Escrow | B37: ACT | C37: CONVENTIONAL | D37: 033-062-32 | E37: 5030545 | F37: 218000 | G37: 43969 | H37: WOLFE FINANCIAL INC
A38: Acme Title and Escrow | B38: ACT | C38: CONVENTIONAL | D38: 145-241-15 | E38: 5028253 | F38: 417000 | G38: 43962 | H38: NEW AMERICAN FUNDING
A39: Acme Title and Escrow | B39: ACT | C39: CONVENTIONAL | D39: 204-083-01 | E39: 5031207 | F39: 298000 | G39: 43970 | H39: ONETRUST HOME LOANS
A40: Acme Title and Escrow | B40: ACT | C40: VA | D40: 532-181-04 | E40: 5028336 | F40: 371347 | G40: 43962 | H40: ONETRUST HOME LOANS
A41: Acme Title and Escrow | B41: ACT | C41: CONVENTIONAL | D41: 550-502-08 | E41: 5030626 | F41: 277500 | G41: 43969 | H41: CALIBER HOME LOANS INC
A42: Acme Title and Escrow | B42: ACT | C42: VA | D42: 031-445-30 | E42: 5031236 | F42: 133263 | G42: 43970 | H42: ONETRUST HOME LOANS
A43: Acme Title and Escrow | B43: ACT | C43: CONVENTIONAL | D43: 530-271-04 | E43: 5030083 | F43: 296000 | G43: 43966 | H43: PRIMELENDING
A44: Driggs Title Agency | B44: DTA | C44: CONVENTIONAL | D44: 528-282-03 | E44: 5027346 | F44: 288700 | G44: 43959 | H44: DHI MORTGAGE COMPANY LTD
A45: Driggs Title Agency | B45: DTA | C45: CONVENTIONAL | D45: 031-193-02 | E45: 5034113 | F45: 105500 | G45: 43979 | H45: UNITED FEDERAL CREDIT UNION
A46: Driggs Title Agency | B46: DTA | C46: CONVENTIONAL | D46: 140-581-17 | E46: 5032890 | F46: 309220 | G46: 43977 | H46: PRIMARY RESIDENTIAL MORTGAGE INC
A47: First American Title | B47: FA | C47: CONVENTIONAL | D47: 083-861-27 | E47: 5031024 | F47: 308000 | G47: 43970 | H47: HOME POINT FINANCIAL CORPORATION
A48: First American Title | B48: FA | C48: CONVENTIONAL | D48: 024-102-01 | E48: 5029100 | F48: 366000 | G48: 43964 | H48: CALIBER HOME LOANS INC
A49: First American Title | B49: FA | C49: FHA | D49: 502-462-01 | E49: 5029062 | F49: 290419 | G49: 43964 | H49: NORTHPOINTE BANK
A50: First American Title | B50: FA | C50: CONVENTIONAL | D50: 516-163-06 | E50: 5028840 | F50: 295000 | G50: 43963 | H50: GREATER NEVADA MORTGAGE
A51: First American Title | B51: FA | C51: CONVENTIONAL | D51: 038-782-01 | E51: 5028826 | F51: 380000 | G51: 43963 | H51: WELCOME HOME FUNDING LLC
A52: First American Title | B52: FA | C52: CONVENTIONAL | D52: 087-502-05 | E52: 5031305 | F52: 222000 | G52: 43970 | H52: NEW AMERICAN FUNDING
A53: First American Title | B53: FA | C53: CONVENTIONAL | D53: 080-773-14 | E53: 5030812 | F53: 232500 | G53: 43969 | H53: NEW AMERICAN FUNDING
A54: First American Title | B54: FA | C54: CONVENTIONAL | D54: 522-755-07 | E54: 5029158 | F54: 276500 | G54: 43964 | H54: GUILD MORTGAGE COMPANY
A55: First American Title | B55: FA | C55: CONVENTIONAL | D55: 025-202-18 | E55: 5028744 | F55: 85800 | G55: 43963 | H55: WESTCOAST MORTGAGE GROUP & REALTY COMPANY
A56: First American Title | B56: FA | C56: CONVENTIONAL | D56: 089-192-01 | E56: 5030960 | F56: 200000 | G56: 43970 | H56: WELLS FARGO BANK NA
A57: First American Title | B57: FA | C57: CONVENTIONAL | D57: 526-341-10 | E57: 5031557 | F57: 258000 | G57: 43971 | H57: AMERICAN PACIFIC MORTGAGE CORPORATION
A58: First American Title | B58: FA | C58: CONVENTIONAL | D58: 526-342-06 | E58: 5028689 | F58: 183000 | G58: 43963 | H58: GREATER NEVADA MORTGAGE
A59: First American Title | B59: FA | C59: CONVENTIONAL | D59: 530-641-05 | E59: 5031737 | F59: 181950 | G59: 43971 | H59: GUILD MORTGAGE COMPANY
A60: First American Title | B60: FA | C60: CONVENTIONAL | D60: 526-651-22 | E60: 5031142 | F60: 274000 | G60: 43970 | H60: WELLS FARGO BANK NA
A61: First American Title | B61: FA | C61: CONVENTIONAL | D61: 510-662-01 | E61: 5031149 | F61: 240200 | G61: 43970 | H61: GUILD MORTGAGE COMPANY
A62: First American Title | B62: FA | C62: CONVENTIONAL | D62: 530-051-12 | E62: 5028795 | F62: 289916 | G62: 43963 | H62: NEW AMERICAN FUNDING
A63: First American Title | B63: FA | C63: SBA | D63: 164-471-08 | E63: 5026138 | F63: 1559000 | G63: 43956 | H63: NEVADA STATE DEVELOPMENT CORPORATION
A64: First American Title | B64: FA | C64: CONVENTIONAL | D64: 007-112-23 | E64: 5034131 | F64: 215000 | G64: 43979 | H64: WELLS FARGO BANK NA
A65: First American Title | B65: FA | C65: CONVENTIONAL | D65: 160-761-16 | E65: 5033885 | F65: 215500 | G65: 43979 | H65: GUILD MORTGAGE COMPANY
A66: First American Title | B66: FA | C66: HOME EQUITY | D66: 510-263-08 | E66: 5025650 | F66: 81375 | G66: 43955 | H66: MOUNTAIN AMERICA FEDERAL CREDIT UNION
A67: First American Title | B67: FA | C67: CONVENTIONAL | D67: 009-840-04 | E67: 5034126 | F67: 304000 | G67: 43979 | H67: ALL WESTERN MORTGAGE INC
A68: First American Title | B68: FA | C68: CONVENTIONAL | D68: 518-011-17 | E68: 5025387 | F68: 254600 | G68: 43955 | H68: WELLS FARGO BANK NA NA
A69: First American Title | B69: FA | C69: CONVENTIONAL | D69: 009-562-21 | E69: 5030964 | F69: 392300 | G69: 43970 | H69: WELLS FARGO BANK NA
A70: First American Title | B70: FA | C70: CONVENTIONAL | D70: 030-162-04 | E70: 5031163 | F70: 245000 | G70: 43970 | H70: WELCOME HOME FUNDING LLC
A71: First American Title | B71: FA | C71: CONVENTIONAL | D71: 004-091-25 | E71: 5034595 | F71: 173000 | G71: 43980 | H71: GUILD MORTGAGE COMPANY
A72: First American Title | B72: FA | C72: CONVENTIONAL | D72: 122-202-22 | E72: 5026488 | F72: 309500 | G72: 43957 | H72: VALLEY WEST MORTGAGE
A73: First American Title | B73: FA | C73: CONVENTIONAL | D73: 036-432-07 | E73: 5029160 | F73: 238000 | G73: 43964 | H73: GUILD MORTGAGE COMPANY
A74: First American Title | B74: FA | C74: CREDIT LINE | D74: 003-592-08 | E74: 5028234 | F74: 44700 | G74: 43962 | H74: NEW AMERICAN FUNDING
A75: First American Title | B75: FA | C75: CONVENTIONAL | D75: 089-421-05 | E75: 5028223 | F75: 282090 | G75: 43962 | H75: GUILD MORTGAGE COMPANY
A76: First American Title | B76: FA | C76: CONVENTIONAL | D76: 510-613-22 | E76: 5031399 | F76: 367220 | G76: 43970 | H76: NEW AMERICAN FUNCING
A77: First American Title | B77: FA | C77: CONVENTIONAL | D77: 160-162-09 | E77: 5028214 | F77: 311250 | G77: 43962 | H77: ALL WESTERN MORTGAGE INC
A78: First American Title | B78: FA | C78: CONVENTIONAL | D78: 510-663-01 | E78: 5028210 | F78: 298500 | G78: 43962 | H78: GUILD MORTGAGE COMPANY
A79: First American Title | B79: FA | C79: CONVENTIONAL | D79: 140-873-28 | E79: 5028201 | F79: 274500 | G79: 43962 | H79: ALL WESTERN MORTGAGE INC
A80: First American Title | B80: FA | C80: CONVENTIONAL | D80: 530-301-16 | E80: 5030695 | F80: 292000 | G80: 43969 | H80: WELLS FARGO BANK NA NA
A81: First American Title | B81: FA | C81: CONVENTIONAL | D81: 522-903-09 | E81: 5031545 | F81: 433500 | G81: 43971 | H81: AXIA FINANCIAL LLC
A82: First American Title | B82: FA | C82: CONVENTIONAL | D82: 530-195-12 | E82: 5029146 | F82: 331500 | G82: 43964 | H82: GUILD MORTGAGE COMPANY
A83: First American Title | B83: FA | C83: CONVENTIONAL | D83: 045-553-06 | E83: 5028185 | F83: 335000 | G83: 43962 | H83: NEW AMERICAN FUNDING
A84: First American Title | B84: FA | C84: CONVENTIONAL | D84: 023-592-16 | E84: 5031566 | F84: 314000 | G84: 43971 | H84: CALIBER HOME LOANS INC
A85: First American Title | B85: FA | C85: CONVENTIONAL | D85: 021-422-04 | E85: 5031595 | F85: 245000 | G85: 43971 | H85: UNITED WHOLEALE MORTGAGE
A86: First American Title | B86: FA | C86: CONVENTIONAL | D86: 005-151-16 | E86: 5031613 | F86: 231500 | G86: 43971 | H86: CALIBER HOME LOANS INC
A87: First American Title | B87: FA | C87: CONVENTIONAL | D87: 030-211-24 | E87: 5031625 | F87: 172500 | G87: 43971 | H87: BANK OF THE WEST
A88: First American Title | B88: FA | C88: CONVENTIONAL | D88: 522-952-02 | E88: 5028016 | F88: 376000 | G88: 43962 | H88: GUILD MORTGAGE COMPANY
A89: First American Title | B89: FA | C89: VA | D89: 087-704-08 | E89: 5031684 | F89: 311900 | G89: 43971 | H89: NEW AMERICAN FUNDING
A90: First American Title | B90: FA | C90: HARD MONEY | D90: 122-212-05 | E90: 5032409 | F90: 2581250 | G90: 43973 | H90: KING ALAN TR; KING CHERYL TR; KING FAMILY TRUST
A91: First American Title | B91: FA | C91: CONVENTIONAL | D91: 083-482-30 | E91: 5030830 | F91: 227800 | G91: 43969 | H91: ALL WESTERN MORTGAGE INC
A92: First American Title | B92: FA | C92: COMMERCIAL | D92: 025-401-14 & 15 | E92: 5031275 | F92: 360000 | G92: 43970 | H92: BANK OF THE WEST
A93: First American Title | B93: FA | C93: CONVENTIONAL | D93: 518-121-02 | E93: 5025123 | F93: 291200 | G93: 43952 | H93: GREATER NEVADA MORTGAGE
A94: First American Title | B94: FA | C94: CONVENTIONAL | D94: 502-461-06 | E94: 5034578 | F94: 226800 | G94: 43980 | H94: NEW AMERICAN FUNDING
A95: First American Title | B95: FA | C95: CONVENTIONAL | D95: 238-353-06 | E95: 5033324 | F95: 363500 | G95: 43977 | H95: CALIBER HOME LOANS INC
A96: First American Title | B96: FA | C96: HARD MONEY | D96: 131-132-09 | E96: 5034350 | F96: 200000 | G96: 43979 | H96: GUINNANE ROY M
A97: First American Title | B97: FA | C97: CONVENTIONAL | D97: 532-154-02 | E97: 5033671 | F97: 320500 | G97: 43978 | H97: PROVIDENT FUNDING ASSOCIATES LP
A98: First American Title | B98: FA | C98: CONVENTIONAL | D98: 508-330-03 | E98: 5034244 | F98: 280000 | G98: 43979 | H98: ALL WESTERN MORTGAGE INC
A99: First American Title | B99: FA | C99: CONVENTIONAL | D99: 127-078-14 | E99: 5034870 | F99: 327500 | G99: 43980 | H99: WESTCOAST MORTGAGE GROUP & REALTY COMPANY
A100: First American Title | B100: FA | C100: CONVENTIONAL | D100: 514-032-04 | E100: 5034854 | F100: 326800 | G100: 43980 | H100: NEW AMERICAN FUNDING
A101: First American Title | B101: FA | C101: CONVENTIONAL | D101: 200-071-21 | E101: 5034836 | F101: 298500 | G101: 43980 | H101: ALL WESTERN MORTGAGE INC
A102: First American Title | B102: FA | C102: CONVENTIONAL | D102: 550-321-01 | E102: 5025083 | F102: 298772 | G102: 43952 | H102: NEW AMERICAN FUNDING
A103: First American Title | B103: FA | C103: CONVENTIONAL | D103: 030-273-19 | E103: 5034121 | F103: 243000 | G103: 43979 | H103: PRIMARY RESIDENTIAL MORGAGE INC
A104: First American Title | B104: FA | C104: CONVENTIONAL | D104: 222-161-14 | E104: 5025122 | F104: 600000 | G104: 43952 | H104: MORGAN STANLEY PRIVATE BANK NATIONAL ASSOCIATION
A105: First American Title | B105: FA | C105: CONVENTIONAL | D105: 512-072-11 | E105: 5025717 | F105: 314400 | G105: 43956 | H105: SUMMIT FUNDING INC
A106: First American Title | B106: FA | C106: CONVENTIONAL | D106: 035-612-03 | E106: 5034539 | F106: 196125 | G106: 43980 | H106: GUILD MORTGAGE COMPANY
A107: First American Title | B107: FA | C107: VA | D107: 017-161-07 | E107: 5033449 | F107: 156341 | G107: 43978 | H107: NAVY FEDERAL CREDIT UNION
A108: First American Title | B108: FA | C108: CONVENTIONAL | D108: 126-082-47 | E108: 5034236 | F108: 784000 | G108: 43979 | H108: US BANK NA
A109: First American Title | B109: FA | C109: CONVENTIONAL | D109: 141-193-07 | E109: 5034109 | F109: 386000 | G109: 43979 | H109: GENEVA FINANCIAL LLC
A110: First American Title | B110: FA | C110: CONVENTIONAL | D110: 534-212-01 | E110: 5034783 | F110: 369124 | G110: 43980 | H110: GUILD MORTGAGE COMPANY
A111: First American Title | B111: FA | C111: CONVENTIONAL | D111: 165-053-03 | E111: 5026684 | F111: 290000 | G111: 43957 | H111: NEVADA STATE BANK
A112: First American Title | B112: FA | C112: VA | D112: 018-162-17 | E112: 5034232 | F112: 215000 | G112: 43979 | H112: NAVY FEDERAL CREDIT UNION
A113: First American Title | B113: FA | C113: CONVENTIONAL | D113: 516-421-09 | E113: 5034237 | F113: 321100 | G113: 43979 | H113: GUILD MORTGAGE COMPANY
A114: First American Title | B114: FA | C114: HARD MONEY | D114: 130-180-29 | E114: 5034239 | F114: 400000 | G114: 43979 | H114: LANTZMAN MANAGEMENT INC
A115: First American Title | B115: FA | C115: CONVENTIONAL | D115: 516-263-15 | E115: 5025100 | F115: 144500 | G115: 43952 | H115: GREATER NEVADA MORTGAGE
A116: First American Title | B116: FA | C116: CONVENTIONAL | D116: 552-241-02 | E116: 5033580 | F116: 190000 | G116: 43978 | H116: GUILD MORTGAGE COMPANY
A117: First American Title | B117: FA | C117: CONVENTIONAL | D117: 526-372-27 | E117: 5034153 | F117: 344000 | G117: 43979 | H117: AMERICAN PACIFIC MORTGAGE CORPORATION
A118: First American Title | B118: FA | C118: CONVENTIONAL | D118: 234-531-10 | E118: 5026644 | F118: 282000 | G118: 43957 | H118: GUILD MORTGAGE COMPANY
A119: First American Title | B119: FA | C119: CONVENTIONAL | D119: 520-353-02 | E119: 5026649 | F119: 417800 | G119: 43957 | H119: NEW AMERICAN FUNDING
A120: First American Title | B120: FA | C120: VA | D120: 141-194-19 | E120: 5034715 | F120: 341895 | G120: 43980 | H120: METROPOLITAN HOME MORTGAGE INC
A121: First American Title | B121: FA | C121: CONVENTIONAL | D121: 200-192-11 | E121: 5033537 | F121: 200000 | G121: 43978 | H121: MASAON MCDUFFIE MORTGAGE CORPORATION
A122: First American Title | B122: FA | C122: CONVENTIONAL | D122: 530-363-08 | E122: 5034726 | F122: 109900 | G122: 43980 | H122: GUILD MORTGAGE COMPANY
A123: First American Title | B123: FA | C123: CONVENTIONAL | D123: 524-421-09 | E123: 5034191 | F123: 402000 | G123: 43979 | H123: AMERICAN PACIFIC MORTGAGE CORPORATION
A124: First American Title | B124: FA | C124: CONVENTIONAL | D124: 140-374-11 | E124: 5034612 | F124: 311100 | G124: 43980 | H124: ALL WESTERN MORTGAGE INC
A125: First American Title | B125: FA | C125: CONVENTIONAL | D125: 552-273-12 | E125: 5026539 | F125: 366022 | G125: 43957 | H125: NEW AMERICAN FUNDING
A126: First American Title | B126: FA | C126: CONVENTIONAL | D126: 036-400-10 | E126: 5025399 | F126: 225000 | G126: 43955 | H126: UNITED WHOLESALE MORTGAGE
A127: First American Title | B127: FA | C127: CONVENTIONAL | D127: 039-352-05 | E127: 5026505 | F127: 269400 | G127: 43957 | H127: MASON MCDUFFIE MORTGAGE CORPORATION
A128: First American Title | B128: FA | C128: CONVENTIONAL | D128: 510-302-15 | E128: 5033494 | F128: 295250 | G128: 43978 | H128: GUILD MORTGAGE COMPANY
A129: First American Title | B129: FA | C129: CONVENTIONAL | D129: 208-561-19 | E129: 5033570 | F129: 239000 | G129: 43978 | H129: AMERICAN PACIFIC MORTGAGE CORPORATION
A130: First American Title | B130: FA | C130: CONVENTIONAL | D130: 526-491-04 | E130: 5034148 | F130: 321300 | G130: 43979 | H130: GUILD MORTGAGE COMPANY
A131: First American Title | B131: FA | C131: CONVENTIONAL | D131: 530-572-08 | E131: 5034592 | F131: 155000 | G131: 43980 | H131: CROSSCOUNTRY MORTGAGE LLC
A132: First American Title | B132: FA | C132: CONVENTIONAL | D132: 141-182-05 | E132: 5033849 | F132: 371200 | G132: 43979 | H132: CALIBER HOME LOANS INC
A133: First American Title | B133: FA | C133: CONVENTIONAL | D133: 014-215-03 | E133: 5034213 | F133: 342193 | G133: 43979 | H133: WELCOME HOME FUNDING LLC
A134: First American Title | B134: FA | C134: CONVENTIONAL | D134: 122-142-12 | E134: 5033633 | F134: 561000 | G134: 43978 | H134: FIRST REPUBLIC BANK
A135: First American Title | B135: FA | C135: CONVENTIONAL | D135: 514-241-05 | E135: 5033507 | F135: 406400 | G135: 43978 | H135: GUILD MORTGAGE COMPANY
A136: First American Title | B136: FA | C136: SBA | D136: 024-321-12 | E136: 5025418 | F136: 251000 | G136: 43955 | H136: MOUNTAIN AMERICA FEDERAL CREDIT UNION
A137: First American Title | B137: FA | C137: VA | D137: 145-283-20 | E137: 5029717 | F137: 670252 | G137: 43965 | H137: NAVY FEDERAL CREDIT UNION
A138: First American Title | B138: FA | C138: CONVENTIONAL | D138: 038-622-34 | E138: 5025502 | F138: 256000 | G138: 43955 | H138: AMERICAN FINANCIAL RESOURCES INC
A139: First American Title | B139: FA | C139: VA | D139: 534-617-01 | E139: 5033230 | F139: 382185 | G139: 43977 | H139: GUILD MORTGAGE COMPANY
A140: First American Title | B140: FA | C140: CONVENTIONAL | D140: 036-631-08 | E140: 5027323 | F140: 132100 | G140: 43959 | H140: WELLS FARGO BANK NA NA
A141: First American Title | B141: FA | C141: CONSTRUCTION | D141: 538-232-15 | E141: 5027005 | F141: 416500 | G141: 43958 | H141: HERITAGE BANK OF NEVADA
A142: First American Title | B142: FA | C142: CONVENTIONAL | D142: 083-494-17 | E142: 5026998 | F142: 298500 | G142: 43958 | H142: GUILD MORTGAGE COMPANY
A143: First American Title | B143: FA | C143: CONVENTIONAL | D143: 049-162-13 | E143: 5032948 | F143: 346069 | G143: 43977 | H143: ALL WESTERN MORTGAGE INC
A144: First American Title | B144: FA | C144: CONSTRUCTION | D144: 538-232-16 | E144: 5027007 | F144: 1190913.04 | G144: 43958 | H144: HERITAGE BANK OF NEVADA
A145: First American Title | B145: FA | C145: CONVENTIONAL | D145: 526-071-28 | E145: 5033134 | F145: 292000 | G145: 43977 | H145: UNITED FEDERAL CREDIT UNION
A146: First American Title | B146: FA | C146: CONVENTIONAL | D146: 534-632-08 | E146: 5032888 | F146: 448000 | G146: 43977 | H146: GUILD MORTGAGE COMPANY
A147: First American Title | B147: FA | C147: CONVENTIONAL | D147: 516-154-05 | E147: 5033153 | F147: 246000 | G147: 43977 | H147: UNITED FEDERAL CREDIT UNION
A148: First American Title | B148: FA | C148: CONVENTIONAL | D148: 526-652-12 | E148: 5026745 | F148: 389500 | G148: 43957 | H148: ONETRUST HOME LOANS
A149: First American Title | B149: FA | C149: CONVENTIONAL | D149: 030-283-23 | E149: 5032916 | F149: 317840 | G149: 43977 | H149: NEW AMERICAN FUNDING
A150: First American Title | B150: FA | C150: FHA | D150: 516-124-07 | E150: 5034029 | F150: 332177 | G150: 43979 | H150: GUILD MORTGAGE COMPANY
A151: First American Title | B151: FA | C151: FHA | D151: 021-224-02 | E151: 5032682 | F151: 294354 | G151: 43973 | H151: VALLEY WEST MORTGAGE
A152: First American Title | B152: FA | C152: FHA | D152: 027-362-22 | E152: 5033282 | F152: 226732 | G152: 43977 | H152: CARDINAL FINANCIAL COMPANY LIMITED PARTNERSHIP
A153: First American Title | B153: FA | C153: CONVENTIONAL | D153: 089-382-06 | E153: 5033294 | F153: 320000 | G153: 43977 | H153: GUILD MORTGAGE COMPANY
A154: First American Title | B154: FA | C154: CONVENTIONAL | D154: 030-421-02 | E154: 5026835 | F154: 189000 | G154: 43957 | H154: GREATER NEVADA MORTGAGE
A155: First American Title | B155: FA | C155: CONVENTIONAL | D155: 023-630-21 | E155: 5032765 | F155: 428000 | G155: 43977 | H155: USAA FEDERAL SAVINGS BANK
A156: First American Title | B156: FA | C156: CONVENTIONAL | D156: 234-172-03 | E156: 5029862 | F156: 328000 | G156: 43965 | H156: AMERICAN PACIFIC MORTGAGE CORPORATION
A157: First American Title | B157: FA | C157: CONVENTIONAL | D157: 143-081-13 | E157: 5032404 | F157: 254000 | G157: 43973 | H157: PRIMARY RESIDENTIAL MORTGAGE INC
A158: First American Title | B158: FA | C158: CONVENTIONAL | D158: 045-310-53 | E158: 5027496 | F158: 340600 | G158: 43959 | H158: GUILD MORTGAGE COMPANY
A159: First American Title | B159: FA | C159: VA | D159: 009-452-02 | E159: 5032530 | F159: 471144 | G159: 43973 | H159: FINANCE OF AMERICA MORTGAGE LLC
A160: First American Title | B160: FA | C160: CONVENTIONAL | D160: 140-741-05 | E160: 5027324 | F160: 386000 | G160: 43959 | H160: UNITED WHOLESALE MORTGAGE
A161: First American Title | B161: FA | C161: CONVENTIONAL | D161: 514-031-03 | E161: 5034032 | F161: 291000 | G161: 43979 | H161: GUILD MORTGAGE COMPANY
A162: First American Title | B162: FA | C162: CONVENTIONAL | D162: 200-161-12 | E162: 5032073 | F162: 285000 | G162: 43972 | H162: ALL WESTERN MORTGAGE INC
A163: First American Title | B163: FA | C163: CONVENTIONAL | D163: 160-192-01 | E163: 5032329 | F163: 227000 | G163: 43973 | H163: EVERGREEN MONEYSOURCE MORTAGE COMPANY
A164: First American Title | B164: FA | C164: CONVENTIONAL | D164: 082-223-04 | E164: 5026613 | F164: 278400 | G164: 43957 | H164: MOVEMENT MORTGAGE LLC
A165: First American Title | B165: FA | C165: CONVENTIONAL | D165: 204-492-12 | E165: 5029150 | F165: 292100 | G165: 43964 | H165: NEW AMERICAN FUNDING
A166: First American Title | B166: FA | C166: CONVENTIONAL | D166: 083-492-13 | E166: 5027664 | F166: 197000 | G166: 43959 | H166: BANK OF THE WEST
A167: First American Title | B167: FA | C167: CONVENTIONAL | D167: 516-401-08 | E167: 5032353 | F167: 183000 | G167: 43973 | H167: NAVY FEDERAL CREDIT UNION
A168: First American Title | B168: FA | C168: CONVENTIONAL | D168: 552-182-03 | E168: 5027660 | F168: 240000 | G168: 43959 | H168: FINANCE OF AMERICA MORTGAGE LLC
A169: First American Title | B169: FA | C169: CONVENTIONAL | D169: 528-161-07 | E169: 5032328 | F169: 205000 | G169: 43973 | H169: WELLS FARGO BANK NA
A170: First American Title | B170: FA | C170: CONVENTIONAL | D170: 508-441-02 | E170: 5027666 | F170: 194850 | G170: 43959 | H170: GUILD MORTGAGE COMPANY
A171: First American Title | B171: FA | C171: CONVENTIONAL | D171: 003-082-49 | E171: 5032175 | F171: 197000 | G171: 43972 | H171: GUILD MORTGAGE COMPANY
A172: First American Title | B172: FA | C172: CONSTRUCTION | D172: 538-232-14 | E172: 5027006 | F172: 1190913.04 | G172: 43958 | H172: HERITAGE BANK OF NEVADA
A173: First American Title | B173: FA | C173: CONVENTIONAL | D173: 009-092-05 | E173: 5032358 | F173: 453000 | G173: 43973 | H173: CALIBER HOME LOANS INC
A174: First American Title | B174: FA | C174: CONVENTIONAL | D174: 534-642-01 | E174: 5032074 | F174: 413000 | G174: 43972 | H174: GUILD MORTGAGE COMPANY
A175: First American Title | B175: FA | C175: CONVENTIONAL | D175: 527-091-02 | E175: 5027928 | F175: 488000 | G175: 43962 | H175: GREATER NEVADA MORTGAGE
A176: First American Title | B176: FA | C176: CONVENTIONAL | D176: 082-341-03 | E176: 5031964 | F176: 142000 | G176: 43972 | H176: HOME POINT FINANCIAL CORPORATION
A177: First American Title | B177: FA | C177: CONVENTIONAL | D177: 200-154-03 | E177: 5027931 | F177: 200000 | G177: 43962 | H177: CALIBER HOME LOANS INC
A178: First American Title | B178: FA | C178: CONVENTIONAL | D178: 013-161-27 | E178: 5031866 | F178: 179258 | G178: 43971 | H178: ALL WESTERN MORTGAGE INC
A179: First American Title | B179: FA | C179: FHA | D179: 008-402-25 | E179: 5031826 | F179: 201419 | G179: 43971 | H179: GUILD MORTGAGE COMPANY
A180: First American Title | B180: FA | C180: CONVENTIONAL | D180: 164-222-12 | E180: 5027940 | F180: 280000 | G180: 43962 | H180: CALIBER HOME LOANS INC
A181: First American Title | B181: FA | C181: CONVENTIONAL | D181: 514-322-06 | E181: 5027945 | F181: 349000 | G181: 43962 | H181: CALIBER HOME LOANS INC
A182: First American Title | B182: FA | C182: CONVENTIONAL | D182: 568-081-05 | E182: 5027902 | F182: 228700 | G182: 43962 | H182: SUMMIT FUNDING INC
A183: First American Title | B183: FA | C183: CONVENTIONAL | D183: 142-160-01 | E183: 5033137 | F183: 241500 | G183: 43977 | H183: CALIBER HOME LOANS INC
A184: First American Title | B184: FA | C184: CONVENTIONAL | D184: 550-303-23 | E184: 5032137 | F184: 165000 | G184: 43972 | H184: NEW AMERICAN FUNDING
A185: First American Title | B185: FA | C185: VA | D185: 502-722-11 | E185: 5029973 | F185: 301964 | G185: 43966 | H185: WELLS FARGO BANK NA NA
A186: First American Title | B186: FA | C186: CONVENTIONAL | D186: 510-292-19 | E186: 5029172 | F186: 332300 | G186: 43964 | H186: GUILD MORTGAGE COMPANY
A187: First American Title | B187: FA | C187: FHA | D187: 502-382-07 | E187: 5030559 | F187: 348392 | G187: 43969 | H187: FINANCE OF AMERICA MORTGAGE LLC
A188: First American Title | B188: FA | C188: CONVENTIONAL | D188: 036-275-07 | E188: 5029170 | F188: 260000 | G188: 43964 | H188: HOMETOWN LENDERS INC
A189: First American Title | B189: FA | C189: CONVENTIONAL | D189: 534-152-07 | E189: 5030630 | F189: 341000 | G189: 43969 | H189: GUILD MORTGAGE COMPANY
A190: First American Title | B190: FA | C190: CONVENTIONAL | D190: 014-194-16 | E190: 5029503 | F190: 335750 | G190: 43964 | H190: BAY EQUITY LLC
A191: First American Title | B191: FA | C191: CONVENTIONAL | D191: 039-044-21 | E191: 5029715 | F191: 263800 | G191: 43965 | H191: USAA FEDERAL SAVINGS BANK
A192: First American Title | B192: FA | C192: CONVENTIONAL | D192: 005-133-24 | E192: 5029803 | F192: 337000 | G192: 43965 | H192: AMERICAN PACIFIC MORTGAGE CORPORATION
A193: First American Title | B193: FA | C193: CONVENTIONAL | D193: 160-191-26 | E193: 5029940 | F193: 286700 | G193: 43966 | H193: NORTHPOINTE BANK
A194: First American Title | B194: FA | C194: CONVENTIONAL | D194: 143-175-01 | E194: 5029946 | F194: 393600 | G194: 43966 | H194: NORTHPOINTE BANK
A195: First American Title | B195: FA | C195: CONVENTIONAL | D195: 534-333-20 | E195: 5029175 | F195: 255000 | G195: 43964 | H195: NEVADA STATE BANK
A196: First American Title | B196: FA | C196: CONVENTIONAL | D196: 019-721-25 | E196: 5029789 | F196: 284911 | G196: 43965 | H196: SUMMIT FUNDING INC
A197: First American Title | B197: FA | C197: CONVENTIONAL | D197: 141-432-02 | E197: 5030094 | F197: 588600 | G197: 43966 | H197: GREATER NEVADA MORTGAGE
A198: First American Title | B198: FA | C198: CONVENTIONAL | D198: 036-554-14 | E198: 5029985 | F198: 251500 | G198: 43966 | H198: GUILD MORTGAGE COMPANY
A199: First American Title | B199: FA | C199: CONVENTIONAL | D199: 422-421-29 | E199: 5029716 | F199: 165000 | G199: 43965 | H199: HOME POINT FINANCIAL CORPORATION
A200: First American Title | B200: FA | C200: CONVENTIONAL | D200: 526-191-06 | E200: 5030001 | F200: 250000 | G200: 43966 | H200: FLAGSTAR BANK FSB
... 926 more rows

Sheet SALESLOANSLIST (hidden)
A1: FULLNAME | B1: RECBY | C1: AMOUNT | D1: RECDATE | E1: DOCTYPE | L1: 1835
A2: Acme Title and Escrow | B2: ACT | C2: 225000 | D2: 43956 | E2: Deed
A3: Acme Title and Escrow | B3: ACT | C3: 1520000 | D3: 43955 | E3: Deed
A4: Acme Title and Escrow | B4: ACT | C4: 332000 | D4: 43979 | E4: Deed
A5: Acme Title and Escrow | B5: ACT | C5: 305000 | D5: 43970 | E5: Deed
A6: Acme Title and Escrow | B6: ACT | C6: 285000 | D6: 43952 | E6: Deed
A7: Acme Title and Escrow | B7: ACT | C7: 60000 | D7: 43964 | E7: Deed
A8: Acme Title and Escrow | B8: ACT | C8: 438000 | D8: 43952 | E8: Deed
A9: Acme Title and Escrow | B9: ACT | C9: 405000 | D9: 43952 | E9: Deed
A10: Acme Title and Escrow | B10: ACT | C10: 325000 | D10: 43964 | E10: Deed
A11: Acme Title and Escrow | B11: ACT | C11: 171422 | D11: 43980 | E11: Deed Of Trust
A12: Acme Title and Escrow | B12: ACT | C12: 260000 | D12: 43978 | E12: Deed Of Trust
A13: Acme Title and Escrow | B13: ACT | C13: 285000 | D13: 43978 | E13: Deed Of Trust
A14: Acme Title and Escrow | B14: ACT | C14: 210000 | D14: 43958 | E14: Deed Of Trust
A15: Acme Title and Escrow | B15: ACT | C15: 133263 | D15: 43970 | E15: Deed Of Trust
A16: Acme Title and Escrow | B16: ACT | C16: 276000 | D16: 43979 | E16: Deed Of Trust
A17: Acme Title and Escrow | B17: ACT | C17: 298000 | D17: 43970 | E17: Deed Of Trust
A18: Acme Title and Escrow | B18: ACT | C18: 362800 | D18: 43980 | E18: Deed Of Trust
A19: Acme Title and Escrow | B19: ACT | C19: 160000 | D19: 43962 | E19: Deed Of Trust
A20: Acme Title and Escrow | B20: ACT | C20: 370000 | D20: 43955 | E20: Deed Of Trust
A21: Acme Title and Escrow | B21: ACT | C21: 144000 | D21: 43957 | E21: Deed Of Trust
A22: Acme Title and Escrow | B22: ACT | C22: 409000 | D22: 43957 | E22: Deed Of Trust
A23: Acme Title and Escrow | B23: ACT | C23: 326000 | D23: 43962 | E23: Deed Of Trust
A24: Acme Title and Escrow | B24: ACT | C24: 273504 | D24: 43972 | E24: Deed Of Trust
A25: Acme Title and Escrow | B25: ACT | C25: 262000 | D25: 43957 | E25: Deed Of Trust
A26: Acme Title and Escrow | B26: ACT | C26: 218000 | D26: 43969 | E26: Deed Of Trust
A27: Acme Title and Escrow | B27: ACT | C27: 307278 | D27: 43978 | E27: Deed Of Trust
A28: Acme Title and Escrow | B28: ACT | C28: 458400 | D28: 43964 | E28: Deed Of Trust
A29: Acme Title and Escrow | B29: ACT | C29: 230000 | D29: 43978 | E29: Deed Of Trust
A30: Acme Title and Escrow | B30: ACT | C30: 185000 | D30: 43979 | E30: Deed Of Trust
A31: Acme Title and Escrow | B31: ACT | C31: 192800 | D31: 43979 | E31: Deed Of Trust
A32: Acme Title and Escrow | B32: ACT | C32: 301000 | D32: 43963 | E32: Deed Of Trust
A33: Acme Title and Escrow | B33: ACT | C33: 303332 | D33: 43964 | E33: Deed Of Trust
A34: Acme Title and Escrow | B34: ACT | C34: 385700 | D34: 43977 | E34: Deed Of Trust
A35: Acme Title and Escrow | B35: ACT | C35: 297500 | D35: 43977 | E35: Deed Of Trust
A36: Acme Title and Escrow | B36: ACT | C36: 387000 | D36: 43977 | E36: Deed Of Trust
A37: Acme Title and Escrow | B37: ACT | C37: 155000 | D37: 43964 | E37: Deed Of Trust
A38: Acme Title and Escrow | B38: ACT | C38: 168500 | D38: 43969 | E38: Deed Of Trust
A39: Acme Title and Escrow | B39: ACT | C39: 200000 | D39: 43964 | E39: Deed Of Trust
A40: Acme Title and Escrow | B40: ACT | C40: 255000 | D40: 43962 | E40: Deed Of Trust
A41: Acme Title and Escrow | B41: ACT | C41: 196000 | D41: 43977 | E41: Deed Of Trust
A42: Acme Title and Escrow | B42: ACT | C42: 201000 | D42: 43952 | E42: Deed Of Trust
A43: Acme Title and Escrow | B43: ACT | C43: 199000 | D43: 43966 | E43: Deed Of Trust
A44: Acme Title and Escrow | B44: ACT | C44: 371347 | D44: 43962 | E44: Deed Of Trust
A45: Acme Title and Escrow | B45: ACT | C45: 280000 | D45: 43966 | E45: Deed Of Trust
A46: Acme Title and Escrow | B46: ACT | C46: 130000 | D46: 43973 | E46: Deed Of Trust
A47: Acme Title and Escrow | B47: ACT | C47: 296000 | D47: 43966 | E47: Deed Of Trust
A48: Acme Title and Escrow | B48: ACT | C48: 232937 | D48: 43966 | E48: Deed Of Trust
A49: Acme Title and Escrow | B49: ACT | C49: 450000 | D49: 43963 | E49: Deed Of Trust
A50: Acme Title and Escrow | B50: ACT | C50: 361000 | D50: 43966 | E50: Deed Of Trust
A51: Acme Title and Escrow | B51: ACT | C51: 277500 | D51: 43969 | E51: Deed Of Trust
A52: Acme Title and Escrow | B52: ACT | C52: 417000 | D52: 43962 | E52: Deed Of Trust
A53: Calatlantic Title West | B53: CAL | C53: 359950 | D53: 43959 | E53: Deed
A54: Calatlantic Title West | B54: CAL | C54: 392676 | D54: 43964 | E54: Deed
A55: Calatlantic Title West | B55: CAL | C55: 496160 | D55: 43979 | E55: Deed
A56: Calatlantic Title West | B56: CAL | C56: 483076 | D56: 43978 | E56: Deed
A57: Calatlantic Title West | B57: CAL | C57: 389950 | D57: 43978 | E57: Deed
A58: Calatlantic Title West | B58: CAL | C58: 429017 | D58: 43970 | E58: Deed
A59: Calatlantic Title West | B59: CAL | C59: 492308 | D59: 43978 | E59: Deed
A60: Calatlantic Title West | B60: CAL | C60: 419950 | D60: 43978 | E60: Deed
A61: Calatlantic Title West | B61: CAL | C61: 429950 | D61: 43978 | E61: Deed
A62: Calatlantic Title West | B62: CAL | C62: 419950 | D62: 43959 | E62: Deed
A63: Calatlantic Title West | B63: CAL | C63: 589333 | D63: 43970 | E63: Deed
A64: Calatlantic Title West | B64: CAL | C64: 405209 | D64: 43952 | E64: Deed
A65: Calatlantic Title West | B65: CAL | C65: 434950 | D65: 43978 | E65: Deed
A66: Calatlantic Title West | B66: CAL | C66: 624221 | D66: 43965 | E66: Deed
A67: Calatlantic Title West | B67: CAL | C67: 435129 | D67: 43964 | E67: Deed
A68: Calatlantic Title West | B68: CAL | C68: 424950 | D68: 43962 | E68: Deed
A69: Calatlantic Title West | B69: CAL | C69: 445407 | D69: 43980 | E69: Deed
A70: Calatlantic Title West | B70: CAL | C70: 418682 | D70: 43979 | E70: Deed
A71: Calatlantic Title West | B71: CAL | C71: 612508 | D71: 43966 | E71: Deed
A72: Calatlantic Title West | B72: CAL | C72: 373565 | D72: 43980 | E72: Deed
A73: Calatlantic Title West | B73: CAL | C73: 513118 | D73: 43980 | E73: Deed
A74: Calatlantic Title West | B74: CAL | C74: 650636 | D74: 43962 | E74: Deed
A75: Calatlantic Title West | B75: CAL | C75: 586695 | D75: 43964 | E75: Deed
A76: Calatlantic Title West | B76: CAL | C76: 428776 | D76: 43978 | E76: Deed
A77: Calatlantic Title West | B77: CAL | C77: 489732 | D77: 43965 | E77: Deed
A78: Calatlantic Title West | B78: CAL | C78: 379519 | D78: 43962 | E78: Deed
A79: Calatlantic Title West | B79: CAL | C79: 92550 | D79: 43963 | E79: Deed
A80: Calatlantic Title West | B80: CAL | C80: 669950 | D80: 43966 | E80: Deed
A81: Calatlantic Title West | B81: CAL | C81: 430324 | D81: 43980 | E81: Deed
A82: Calatlantic Title West | B82: CAL | C82: 471418 | D82: 43963 | E82: Deed
A83: Calatlantic Title West | B83: CAL | C83: 683901 | D83: 43959 | E83: Deed
A84: Calatlantic Title West | B84: CAL | C84: 549950 | D84: 43959 | E84: Deed
A85: Calatlantic Title West | B85: CAL | C85: 386950 | D85: 43962 | E85: Deed
A86: DHI Title of Nevada | B86: DHI | C86: 416413 | D86: 43980 | E86: Deed
A87: DHI Title of Nevada | B87: DHI | C87: 307995 | D87: 43972 | E87: Deed
A88: DHI Title of Nevada | B88: DHI | C88: 394995 | D88: 43973 | E88: Deed
A89: DHI Title of Nevada | B89: DHI | C89: 364995 | D89: 43952 | E89: Deed
A90: DHI Title of Nevada | B90: DHI | C90: 300290 | D90: 43977 | E90: Deed
A91: DHI Title of Nevada | B91: DHI | C91: 531292 | D91: 43972 | E91: Deed
A92: DHI Title of Nevada | B92: DHI | C92: 310290 | D92: 43977 | E92: Deed
A93: DHI Title of Nevada | B93: DHI | C93: 317995 | D93: 43977 | E93: Deed
A94: DHI Title of Nevada | B94: DHI | C94: 499995 | D94: 43978 | E94: Deed
A95: DHI Title of Nevada | B95: DHI | C95: 574995 | D95: 43978 | E95: Deed
A96: DHI Title of Nevada | B96: DHI | C96: 549995 | D96: 43980 | E96: Deed
A97: DHI Title of Nevada | B97: DHI | C97: 320290 | D97: 43977 | E97: Deed
A98: DHI Title of Nevada | B98: DHI | C98: 500000 | D98: 43970 | E98: Deed
A99: DHI Title of Nevada | B99: DHI | C99: 499995 | D99: 43966 | E99: Deed
A100: DHI Title of Nevada | B100: DHI | C100: 439995 | D100: 43971 | E100: Deed
A101: DHI Title of Nevada | B101: DHI | C101: 520675 | D101: 43966 | E101: Deed
A102: DHI Title of Nevada | B102: DHI | C102: 399995 | D102: 43959 | E102: Deed
A103: Driggs Title Agency | B103: DTA | C103: 288700 | D103: 43959 | E103: Deed Of Trust
A104: Driggs Title Agency | B104: DTA | C104: 309220 | D104: 43977 | E104: Deed Of Trust
A105: Driggs Title Agency | B105: DTA | C105: 105500 | D105: 43979 | E105: Deed Of Trust
A106: First American Title | B106: FA | C106: 438000 | D106: 43966 | E106: Deed
A107: First American Title | B107: FA | C107: 640000 | D107: 43978 | E107: Deed
A108: First American Title | B108: FA | C108: 315000 | D108: 43980 | E108: Deed
A109: First American Title | B109: FA | C109: 460360 | D109: 43966 | E109: Deed
A110: First American Title | B110: FA | C110: 300000 | D110: 43966 | E110: Deed
A111: First American Title | B111: FA | C111: 1761989.67 | D111: 43965 | E111: Deed
A112: First American Title | B112: FA | C112: 338000 | D112: 43980 | E112: Deed
A113: First American Title | B113: FA | C113: 350000 | D113: 43959 | E113: Deed
A114: First American Title | B114: FA | C114: 380000 | D114: 43966 | E114: Deed
A115: First American Title | B115: FA | C115: 270000 | D115: 43959 | E115: Deed
A116: First American Title | B116: FA | C116: 420000 | D116: 43966 | E116: Deed
A117: First American Title | B117: FA | C117: 589980 | D117: 43956 | E117: Deed
A118: First American Title | B118: FA | C118: 370000 | D118: 43966 | E118: Deed
A119: First American Title | B119: FA | C119: 392000 | D119: 43959 | E119: Deed
A120: First American Title | B120: FA | C120: 520000 | D120: 43958 | E120: Deed
A121: First American Title | B121: FA | C121: 189000 | D121: 43963 | E121: Deed
A122: First American Title | B122: FA | C122: 515000 | D122: 43958 | E122: Deed
A123: First American Title | B123: FA | C123: 617500 | D123: 43962 | E123: Deed
A124: First American Title | B124: FA | C124: 620000 | D124: 43962 | E124: Deed
A125: First American Title | B125: FA | C125: 1400000 | D125: 43963 | E125: Deed
A126: First American Title | B126: FA | C126: 830000 | D126: 43979 | E126: Deed
A127: First American Title | B127: FA | C127: 625000 | D127: 43971 | E127: Deed
A128: First American Title | B128: FA | C128: 1400000 | D128: 43965 | E128: Deed
A129: First American Title | B129: FA | C129: 2775000 | D129: 43962 | E129: Deed
A130: First American Title | B130: FA | C130: 260000 | D130: 43959 | E130: Deed
A131: First American Title | B131: FA | C131: 400000 | D131: 43963 | E131: Deed
A132: First American Title | B132: FA | C132: 400000 | D132: 43957 | E132: Deed
A133: First American Title | B133: FA | C133: 1462500 | D133: 43979 | E133: Deed
A134: First American Title | B134: FA | C134: 265000 | D134: 43956 | E134: Deed
A135: First American Title | B135: FA | C135: 1700000 | D135: 43952 | E135: Deed
A136: First American Title | B136: FA | C136: 428158 | D136: 43970 | E136: Deed
A137: First American Title | B137: FA | C137: 373039 | D137: 43973 | E137: Deed
A138: First American Title | B138: FA | C138: 397731 | D138: 43970 | E138: Deed
A139: First American Title | B139: FA | C139: 95000 | D139: 43973 | E139: Deed
A140: First American Title | B140: FA | C140: 414900 | D140: 43959 | E140: Deed
A141: First American Title | B141: FA | C141: 2950000 | D141: 43973 | E141: Deed
A142: First American Title | B142: FA | C142: 602000 | D142: 43952 | E142: Deed
A143: First American Title | B143: FA | C143: 265000 | D143: 43980 | E143: Deed
A144: First American Title | B144: FA | C144: 339000 | D144: 43955 | E144: Deed
A145: First American Title | B145: FA | C145: 3000000 | D145: 43970 | E145: Deed
A146: First American Title | B146: FA | C146: 375000 | D146: 43959 | E146: Deed
A147: First American Title | B147: FA | C147: 515000 | D147: 43977 | E147: Deed
A148: First American Title | B148: FA | C148: 572183 | D148: 43977 | E148: Deed
A149: First American Title | B149: FA | C149: 821000 | D149: 43959 | E149: Deed
A150: First American Title | B150: FA | C150: 825000 | D150: 43978 | E150: Deed
A151: First American Title | B151: FA | C151: 925000 | D151: 43972 | E151: Deed
A152: First American Title | B152: FA | C152: 1150000 | D152: 43956 | E152: Deed
A153: First American Title | B153: FA | C153: 270000 | D153: 43969 | E153: Deed
A154: First American Title | B154: FA | C154: 485000 | D154: 43970 | E154: Deed
A155: First American Title | B155: FA | C155: 315000 | D155: 43978 | E155: Deed
A156: First American Title | B156: FA | C156: 396706 | D156: 43956 | E156: Deed
A157: First American Title | B157: FA | C157: 420000 | D157: 43956 | E157: Deed
A158: First American Title | B158: FA | C158: 101300 | D158: 43966 | E158: Deed Of Trust
A159: First American Title | B159: FA | C159: 359950 | D159: 43966 | E159: Deed Of Trust
A160: First American Title | B160: FA | C160: 600000 | D160: 43952 | E160: Deed Of Trust
A161: First American Title | B161: FA | C161: 314000 | D161: 43971 | E161: Deed Of Trust
A162: First American Title | B162: FA | C162: 298772 | D162: 43952 | E162: Deed Of Trust
A163: First American Title | B163: FA | C163: 226732 | D163: 43977 | E163: Deed Of Trust
A164: First American Title | B164: FA | C164: 144500 | D164: 43952 | E164: Deed Of Trust
A165: First American Title | B165: FA | C165: 231500 | D165: 43971 | E165: Deed Of Trust
A166: First American Title | B166: FA | C166: 346069 | D166: 43977 | E166: Deed Of Trust
A167: First American Title | B167: FA | C167: 335750 | D167: 43964 | E167: Deed Of Trust
A168: First American Title | B168: FA | C168: 347250 | D168: 43969 | E168: Deed Of Trust
A169: First American Title | B169: FA | C169: 205000 | D169: 43973 | E169: Deed Of Trust
A170: First American Title | B170: FA | C170: 291200 | D170: 43952 | E170: Deed Of Trust
A171: First American Title | B171: FA | C171: 328000 | D171: 43964 | E171: Deed Of Trust
A172: First American Title | B172: FA | C172: 128300 | D172: 43969 | E172: Deed Of Trust
A173: First American Title | B173: FA | C173: 251400 | D173: 43964 | E173: Deed Of Trust
A174: First American Title | B174: FA | C174: 227000 | D174: 43973 | E174: Deed Of Trust
A175: First American Title | B175: FA | C175: 284911 | D175: 43965 | E175: Deed Of Trust
A176: First American Title | B176: FA | C176: 245000 | D176: 43971 | E176: Deed Of Trust
A177: First American Title | B177: FA | C177: 85800 | D177: 43963 | E177: Deed Of Trust
A178: First American Title | B178: FA | C178: 382185 | D178: 43977 | E178: Deed Of Trust
A179: First American Title | B179: FA | C179: 183000 | D179: 43963 | E179: Deed Of Trust
A180: First American Title | B180: FA | C180: 311900 | D180: 43971 | E180: Deed Of Trust
A181: First American Title | B181: FA | C181: 183000 | D181: 43973 | E181: Deed Of Trust
A182: First American Title | B182: FA | C182: 241500 | D182: 43977 | E182: Deed Of Trust
A183: First American Title | B183: FA | C183: 166385 | D183: 43966 | E183: Deed Of Trust
A184: First American Title | B184: FA | C184: 6400000 | D184: 43966 | E184: Deed Of Trust
A185: First American Title | B185: FA | C185: 588600 | D185: 43966 | E185: Deed Of Trust
A186: First American Title | B186: FA | C186: 442500 | D186: 43966 | E186: Deed Of Trust
A187: First American Title | B187: FA | C187: 390000 | D187: 43966 | E187: Deed Of Trust
A188: First American Title | B188: FA | C188: 399500 | D188: 43966 | E188: Deed Of Trust
A189: First American Title | B189: FA | C189: 347000 | D189: 43966 | E189: Deed Of Trust
A190: First American Title | B190: FA | C190: 230000 | D190: 43966 | E190: Deed Of Trust
A191: First American Title | B191: FA | C191: 350000 | D191: 43966 | E191: Deed Of Trust
A192: First American Title | B192: FA | C192: 197000 | D192: 43959 | E192: Deed Of Trust
A193: First American Title | B193: FA | C193: 268750 | D193: 43966 | E193: Deed Of Trust
A194: First American Title | B194: FA | C194: 44700 | D194: 43962 | E194: Deed Of Trust
A195: First American Title | B195: FA | C195: 165000 | D195: 43965 | E195: Deed Of Trust
A196: First American Title | B196: FA | C196: 251500 | D196: 43966 | E196: Deed Of Trust
A197: First American Title | B197: FA | C197: 172500 | D197: 43971 | E197: Deed Of Trust
A198: First American Title | B198: FA | C198: 292000 | D198: 43977 | E198: Deed Of Trust
A199: First American Title | B199: FA | C199: 301964 | D199: 43966 | E199: Deed Of Trust
A200: First American Title | B200: FA | C200: 393600 | D200: 43966 | E200: Deed Of Trust
... 1635 more rows
